Cogmind - Beta 11.1 @@@ ROGUE MODE // 2022.06.24 @ 01:40:19 Player: Savant Result: Destroyed by M Guard with Cooled Nova Cannon Performance ------------- Evolutions (9) 4500 Regions Visited (35) 7000 Robots Destroyed (297) 1485 Value Destroyed (10352) 10352 Prototype IDs (149) 2980 Alien Tech Used (13) 2600 Bonus (14033) 14033 TOTAL SCORE: 42950 Bonus ------- High Alert Combat Kills 253 Follower Combat Kills 2260 Met Data Miner 300 Met Imprinter 300 MAIN.C Attacked Warlord 500 A7 Reached Mainframe 300 Met MAIN.C 5000 Hacked MAIN.C 300 Destroyed MAIN.C Shell 5000 Friendly Fire -180 Cogmind --------- Core Integrity 0/1600 Matter 75/425 Energy 100/100 System Corruption 3% Temperature Cool (9) Movement Core (100) Ox1 Location -1/Command Parts ------- > --- POWER (2) -------- Matter Drive > --- PROPULSION (6) --- (None) > --- UTILITY (15) ----- (None) > --- WEAPON (3) ------- (None) > --- INVENTORY (5) ---- Experimental Energy Well (600) Advanced Force Field Transdimensional Reconstructor Gamma Rifle Enhanced Quantum Rifle Peak State ------------ > --- POWER ------------ Matter Drive > --- PROPULSION ------- Improved Heavy Treads High-density Centrium Heavy Treads High-density Centrium Heavy Treads > --- UTILITY ---------- High-capacity Storage Unit Experimental Energy Well Advanced Gravity Neutralizer Long-range Sensor Array Experimental Signal Interpreter Long-range Terrain Scanner Experimental Terrain Scan Processor Experimental Targeting Computer Advanced Transmission Jammer Experimental Focal Shield Advanced Hacking Suite Experimental Hacking Suite Experimental Hacking Suite Experimental Hacking Suite Advanced System Shield > --- WEAPON ----------- Modified EM Gauss Rifle Sigix Broadsword > --- INVENTORY -------- Micro Antimatter Reactor Light Quantum Reactor Impulse Thruster Array Impulse Thruster Array Improved Q-thruster Large Storage Unit Experimental Energy Well Experimental Matter Compressor Precision Matter Filter Advanced Kinecellerator Experimental EM Disruption Field Advanced Force Field Point Defense Array Transdimensional Reconstructor Integrity Redistributor Integrity Redistributor Omega Cannon [Rating: 243] Favorites ----------- Power Backup Power VII Engine Backup Power III Power Core Backup Power VII Reactor Micro Antimatter Reactor Propulsion Improved VTOL Module Treads Improved Treads Leg Aluminum Leg Wheel Wheel Hover Unit Hover Unit Flight Unit Improved VTOL Module Utility Experimental Hacking Suite Device Long-range Sensor Array Storage Medium Storage Unit Processor Experimental Signal Interpreter Hackware Experimental Hacking Suite Protection Light Armor Plating Weapon Makeshift Hammer Energy Gun Improved EM Shotgun Energy Cannon Matter Neutralizer Ballistic Gun Minigun Ballistic Cannon Light Cannon Launcher Mini Grenade Launcher Special Weapon Plasma Cutter Impact Weapon Makeshift Hammer Slashing Weapon Sigix Broadsword Piercing Weapon Plasma Lance Special Melee Weapon Dirty Datajack Build | -11 -10 -10 -9 -9 -8 -7 -7 -7 -7 -6 -6 -6 -6 -6 -5 -5 -5 -5 -5 -5 -5 -4 -4 -4 -4 -4 -4 -3 -3 -3 -2 -2 -2 -1 -1 ------- Run | Scr Mat Min Mat Min Mat Fac Low Low Zio Pro Fac Low Low Dat Pro Fac Was Fac Ext Cet Arc Fac Was Fac Upp Upp War Pro Res Qua Res Tes Sec Acc Com Slots Evolved 18 | . . . 2 . 2 2 . . . . 2 . . . . 2 . . . . . 2 . . . . . . 2 . 2 . . 2 . Power . | . . . . . . . . . . . . . . . . . . . . . . . . . . . . . . . . . . . . Propulsion 4 | . . . . . 1 1 . . . . 1 . . . . . . . . . . . . . . . . . 1 . . . . . . Utility 13 | . . . 2 . 1 1 . . . . 1 . . . . 2 . . . . . 2 . . . . . . 1 . 2 . . 1 . Weapon 1 | . . . . . . . . . . . . . . . . . . . . . . . . . . . . . . . . . . 1 . Parts Attached 757 | 7 10 4 45 1 58 23 3 10 . 17 27 12 30 . 18 11 . 34 18 11 12 56 5 55 5 6 13 3 58 31 26 18 49 28 53 Power 63 | 1 . 1 3 . 5 1 . . . . 1 . . . 2 . . 1 . 1 1 4 . 2 . . 3 . 3 . 4 2 7 8 13 Engine 5 | 1 . . 3 . 1 . . . . . . . . . . . . . . . . . . . . . . . . . . . . . . Core 17 | . . 1 . . 4 1 . . . . 1 . . . 2 . . 1 . 1 . 2 . 2 . . 2 . . . . . . . . Reactor 41 | . . . . . . . . . . . . . . . . . . . . . 1 2 . . . . 1 . 3 . 4 2 7 8 13 Propulsion 97 | 2 4 2 13 . 16 4 . . . . 5 . . . 2 1 . 1 1 6 5 10 . 5 1 . 1 . 6 2 2 1 . 7 . Treads 27 | 1 3 1 7 . 9 . . . . . . . . . . . . . . . 1 . . . . . . . . . . . . 5 . Leg 2 | . . . . . 2 . . . . . . . . . . . . . . . . . . . . . . . . . . . . . . Wheel 14 | 1 1 1 6 . 5 . . . . . . . . . . . . . . . . . . . . . . . . . . . . . . Hover 4 | . . . . . . . . . . . . . . . . . . . . 2 . 1 . . . . . . 1 . . . . . . Flight 50 | . . . . . . 4 . . . . 5 . . . 2 1 . 1 1 4 4 9 . 5 1 . 1 . 5 2 2 1 . 2 . Utility 425 | 1 4 . 13 1 15 10 2 8 . 14 19 12 28 . 13 6 . 12 12 2 3 32 2 41 4 4 7 3 49 25 20 8 20 12 23 Device 312 | . . . 8 1 3 4 2 8 . 14 15 12 28 . 13 1 . 9 6 1 3 23 . 33 2 3 6 3 37 22 12 8 16 7 12 Storage 13 | 1 2 . . . . 1 . . . . . . . . . . . 1 . . . 1 1 1 . . . . 1 . 1 . . 1 2 Processor 12 | . . . . . 2 2 . . . . . . . . . . . 1 . . . 1 . . 1 . . . . . . . . 1 4 Hackware 26 | . . . . . . 3 . . . . 4 . . . . 5 . 1 . . . 3 . . . . . . 3 . 4 . 1 2 . Protection 62 | . 2 . 5 . 10 . . . . . . . . . . . . . 6 1 . 4 1 7 1 1 1 . 8 3 3 . 3 1 5 Artifact . | . . . . . . . . . . . . . . . . . . . . . . . . . . . . . . . . . . . . Weapon 172 | 3 2 1 16 . 22 8 1 2 . 3 2 . 2 . 1 4 . 20 5 2 3 10 3 7 . 2 2 . . 4 . 7 22 1 17 Energy Gun 41 | 3 1 . 7 . 9 . . . . . . . . . . . . . 1 . . . . . . . 2 . . . . 2 7 1 8 Energy Cannon 23 | . 1 . 2 . 1 . . . . . . . . . . . . 7 . . 1 2 1 4 . 1 . . . 1 . . 2 . . Ballistic Gun 8 | . . . . . 6 . . . . . . . . . . . . . . . . 2 . . . . . . . . . . . . . Ballistic Cannon 10 | . . 1 1 . 1 . . . . . . . . . . . . . . . 1 . 1 . . . . . . . . 1 2 . 2 Launcher 4 | . . . . . . 1 . 1 . . . . . . . . . . . . . . . . . . . . . . . . . . 2 Special Weapon 15 | . . . . . . 1 . . . 1 . . 1 . . 2 . 2 . 1 . 3 . 1 . . . . . . . . . . 3 Impact Weapon 47 | . . . 6 . 5 5 1 1 . 2 2 . 1 . 1 2 . 11 4 1 1 3 1 . . . . . . . . . . . . Slashing Weapon 19 | . . . . . . 1 . . . . . . . . . . . . . . . . . . . . . . . 2 . 3 11 . 2 Piercing Weapon 4 | . . . . . . . . . . . . . . . . . . . . . . . . 2 . . . . . 1 . 1 . . . Special Melee Weapon 1 | . . . . . . . . . . . . . . . . . . . . . . . . . . 1 . . . . . . . . . Unidentified Prototypes 19 | . . . 1 . 1 . 1 . . 1 . . . . . . . 1 . . . . 1 . . . 6 . . 3 . 2 2 . . Corrupted Parts 3 | . . . . . . . . . . . . . . . . . . . . . 2 1 . . . . . . . . . . . . . System Corruption 12 | . . . . . . . . . . . . . . . . . . . . . 3 9 . . . . . . . . . . . . . Parts Lost 68 | . . . 1 . 14 . . . . . 1 . . . . . . 2 1 4 7 4 . 1 . . . . 1 . 1 . 2 . 29 Power 9 | . . . . . 3 . . . . . 1 . . . . . . . 1 . 1 . . . . . . . . . . . 1 . 2 Propulsion 16 | . . . . . 5 . . . . . . . . . . . . . . 4 2 2 . . . . . . . . . . . . 3 Utility 31 | . . . . . 3 . . . . . . . . . . . . 2 . . 1 2 . 1 . . . . . . 1 . 1 . 20 Weapon 12 | . . . 1 . 3 . . . . . . . . . . . . . . . 3 . . . . . . . 1 . . . . . 4 Highest Loss Streak 24 | . . . 1 . 4 . . . . . 1 . . . . . . 1 1 3 7 2 . 1 . . . . 1 . 1 . 1 . 24 To Critical Strikes 1 | . . . . . . . . . . . . . . . . . . . . . . . . . . . . . . . . . . . 1 Average Slot Usage (%) 92 | . 98 100 99 100 97 99 95 91 92 91 99 93 93 93 94 100 100 98 97 82 72 91 89 89 90 90 90 90 87 85 85 87 86 84 77 Engine 3 | . 14 8 10 11 3 2 7 7 7 7 . . . . . . . . . . . . . . . . . . . . . . . . . Core 4 | . . 5 . . 5 4 . . . . 11 6 6 6 7 11 11 11 8 4 2 8 10 9 10 10 10 10 4 4 . . . . . Reactor 1 | . . . . . . . . . . . . . . . . . . . . . 1 . . . . . . . 3 4 7 8 7 6 6 Treads 4 | . 14 14 11 11 20 . . . . . . . . . . . . . . . 1 . . . . . . . . . . . . 5 10 Wheel 2 | . 13 13 10 11 5 . . . . . . . . . . . . . . . . . . . . . . . . . . . . . . Flight 14 | . . . . . . 29 29 28 28 28 30 31 31 31 31 27 27 26 27 19 13 18 15 14 15 15 15 15 17 17 16 16 16 7 . Device 11 | . . . 11 11 17 7 14 14 14 14 6 6 6 6 5 8 5 5 8 8 6 9 5 10 14 14 14 14 13 12 14 13 17 17 9 Storage 7 | . 14 14 11 11 9 7 7 7 7 7 6 6 6 6 6 5 5 5 5 5 5 5 5 5 5 5 5 5 4 4 7 8 8 7 6 Processor 7 | . . . . . 5 9 7 7 7 7 6 6 6 6 6 5 5 5 11 11 11 10 10 10 15 15 15 15 10 9 8 8 8 10 14 Hackware 16 | . . . . . . 19 14 14 14 14 24 25 25 25 25 29 33 30 22 22 22 28 30 27 20 20 20 20 24 27 23 23 19 19 14 Protection 5 | . 12 14 22 22 12 . . . . . . . . . . . . . 1 2 2 1 5 2 . . . . . . 1 4 3 . 3 Energy Gun 4 | . 26 17 9 22 11 . . . . . . . . . . . . . . . . . . . . . 1 5 2 . . . . 2 2 Impact Weapon 4 | . . . 6 . . 9 10 13 14 13 12 12 12 12 12 10 11 10 9 3 1 4 4 2 . . . . . . . . . . . Naked Turns . | . . . . . . . . . . . . . . . . . . . . . . . . . . . . . . . . . . . . Heaviest Build 198 | 14 52 53 62 63 64 20 22 22 20 25 26 23 23 21 26 28 26 33 30 25 36 44 38 41 39 39 63 36 57 50 62 63 65 108 198 Greatest Support 265 | 16 16 10 10 10 69 20 20 20 20 20 27 26 26 26 27 28 28 28 29 29 30 49 38 50 50 50 50 50 60 58 62 63 73 265 265 Greatest Overweight (x) 6 | 1 5 5 6 6 6 . 1 1 . 1 1 . . . . . . 1 1 2 1 . . 1 . . 2 . . . . . 1 . 1 Average Overweight (x) . | . 3 5 5 6 1 . . . . . . . . . . . . . . . . . . . . . . . . . . . . . . Largest Inventory Capacity 25 | 8 20 20 20 20 20 20 10 10 10 10 10 10 10 10 10 10 10 10 10 10 10 10 10 10 10 10 10 10 15 15 15 15 15 20 25 Average Capacity 14 | 6 18 20 20 20 20 10 10 10 10 10 10 10 10 10 10 10 10 10 10 10 10 10 10 10 10 10 10 10 14 15 15 15 15 17 22 Most Carried 25 | 4 20 20 20 20 20 19 10 10 10 10 10 10 10 10 10 10 10 10 10 10 10 10 10 10 10 10 10 10 15 15 15 15 15 20 25 Average Carried 13 | 2 14 19 19 19 19 10 9 9 10 10 9 10 10 10 9 9 9 9 9 9 8 9 9 9 9 9 9 10 13 14 14 14 14 17 20 Final Capacity 20 | 8 20 20 20 20 20 10 10 10 10 10 10 10 10 10 10 10 10 10 10 10 10 10 10 10 10 10 10 10 15 15 15 15 15 20 5 Final Carried 20 | 4 19 20 20 20 20 10 10 10 10 10 10 10 10 10 10 10 10 10 10 9 8 10 10 10 10 10 10 10 15 15 15 15 15 20 5 Class Distribution -------------------- 20% | Mutant 15% | Hacker-Scout 15% | Hacker-Sprinter 13% | Wizard-Sprinter 8% | Wizard-Scout 7% | Wizard-Mutant 7% | Wizard-Ninja 3% | Hacker-Mutant 3% | Wizard-Assassin Dominant Class ---------------- Mutant | -10/Materials Commander-Mutant | -10/Mines Mutant | -9/Materials Mutant | -9/Mines Mutant | -8/Materials Hacker-Sprinter | -7/Factory Hacker-Sprinter | -7/Lower Caves Hacker-Scout | -7/Lower Caves Hacker-Scout | -7/Zion Hacker-Scout | -6/Proximity Caves Hacker-Sprinter | -6/Factory Hacker-Sprinter | -6/Lower Caves Hacker-Sprinter | -6/Lower Caves Hacker-Sprinter | -6/Data Miner Hacker-Sprinter | -5/Proximity Caves Wizard-Scout | -5/Factory Wizard-Scout | -5/Waste Wizard-Sprinter | -5/Factory Hacker-Sprinter | -5/Extension Hacker-Mutant | -5/Cetus Hacker-Mutant | -5/Archives Wizard-Sprinter | -4/Factory Wizard-Mutant | -4/Waste Wizard-Mutant | -4/Factory Hacker-Scout | -4/Upper Caves Hacker-Scout | -4/Upper Caves Hacker-Scout | -4/Warlord Hacker-Scout | -3/Proximity Caves Wizard-Sprinter | -3/Research Wizard-Sprinter | -3/Quarantine Wizard-Ninja | -2/Research Wizard-Scout | -2/Testing Wizard-Ninja | -2/Section 7 Wizard-Assassin | -1/Access Wizard-Mutant | -1/Command Resources | -11 -10 -10 -9 -9 -8 -7 -7 -7 -7 -6 -6 -6 -6 -6 -5 -5 -5 -5 -5 -5 -5 -4 -4 -4 -4 -4 -4 -3 -3 -3 -2 -2 -2 -1 -1 ----------- Run | Scr Mat Min Mat Min Mat Fac Low Low Zio Pro Fac Low Low Dat Pro Fac Was Fac Ext Cet Arc Fac Was Fac Upp Upp War Pro Res Qua Res Tes Sec Acc Com Matter Collected 10121 | 260 174 154 537 10 798 150 146 194 . 180 270 110 281 . 218 124 . 266 254 100 132 737 123 525 50 90 . 122 584 262 287 200 1285 280 1218 Remotely . | . . . . . . . . . . . . . . . . . . . . . . . . . . . . . . . . . . . . Salvage Created 13551 | . 208 202 1060 337 2274 29 . 21 . 50 254 20 27 . . 183 . 122 678 89 66 842 . 746 . 12 . . 796 276 456 344 1520 703 2236 Parts 674 | . 22 8 74 22 126 2 . . . . 7 . . . . 11 . 5 6 3 . 30 . 30 . 1 . . 40 16 21 11 82 54 103 Haulers Intercepted 7 | . . . 3 . 2 . . . . . . . . . . . . . . . . . . . . . . . . . 1 . . 1 . Recyclers Shooed 9 | . . . . 1 1 . . . . . . . . . . . . . 1 . . 3 . 1 . . . . . . . . . 1 1 Parts Field Recycled . | . . . . . . . . . . . . . . . . . . . . . . . . . . . . . . . . . . . . Retrieved Matter . | . . . . . . . . . . . . . . . . . . . . . . . . . . . . . . . . . . . . Parts Self-Destructed 30 | . . . . . . . 4 3 . 4 . . . . 10 . . . . . . . . . . 3 . 6 . . . . . . . Prevented 9 | . . . . . . . . 2 . 4 . . . . . . . . . . . . . . . 2 . 1 . . . . . . . Kills | -11 -10 -10 -9 -9 -8 -7 -7 -7 -7 -6 -6 -6 -6 -6 -5 -5 -5 -5 -5 -5 -5 -4 -4 -4 -4 -4 -4 -3 -3 -3 -2 -2 -2 -1 -1 ------- Run | Scr Mat Min Mat Min Mat Fac Low Low Zio Pro Fac Low Low Dat Pro Fac Was Fac Ext Cet Arc Fac Was Fac Upp Upp War Pro Res Qua Res Tes Sec Acc Com Combat Hostiles Destroyed 183 | . 9 9 22 11 35 . . 1 . 1 7 . 1 . . 2 . 4 3 1 1 4 . 15 . . . . 7 2 2 . 15 4 27 Melee 60 | . . . 1 . 1 . . . . . 2 . 1 . . . . . 1 . . 2 . 11 . . . . 7 2 2 . 13 4 13 Guns 67 | . 8 6 14 6 24 . . . . . . . . . . . . . . . . 2 . . . . . . . . . . . . 7 Cannons 14 | . . 3 5 . 1 . . . . . . . . . . 1 . 1 . . 1 . . . . . . . . . . . . . 2 AOE 24 | . 1 . 2 5 6 . . 1 . . . . . . . 1 . 3 . . . . . . . . . . . . . . 2 . 3 Classes Destroyed 18 | . 2 2 6 1 3 . . . . . . 1 1 . . . . . . . . 1 . . . . . . 1 . . . . . . Worker 6 | . . . 2 1 . . . . . . . . . . . 1 . . . . . . . . . . . . . . . . 1 . 1 Builder 25 | . . . 2 . 3 . . . . . 2 . . . . 1 . 1 . . . 4 . 3 . . . . 1 . . . 3 5 . Tunneler 3 | . . . 1 1 1 . . . . . . . . . . . . . . . . . . . . . . . . . . . . . . Hauler 7 | . . . 3 . 2 . . . . . . . . . . . . . . . . . . . . . . . . . 1 . . 1 . Recycler 23 | . . 1 1 . 3 . . . . . . . . . . . . . 3 . . 4 . 1 . . . . 1 1 . 2 3 1 2 Minesweeper 2 | . . . . . . . . . . . . 1 . . . . . . . . . . . . . 1 . . . . . . . . . Operator 2 | . . . . . 2 . . . . . . . . . . . . . . . . . . . . . . . . . . . . . . Drone 2 | . . . . . . . . . . . . . . . . . . . . . . 1 . . . . . . . 1 . . . . . Watcher 54 | . 3 . 4 . 5 1 . . . . 2 . . . . 6 . 3 . 1 . 2 . 5 . . . . 6 2 4 2 3 3 2 Swarmer 72 | . 9 3 13 6 4 . . . . . 6 . . . . 2 . 4 . . . . . 14 . . . . . . . . 6 . 5 Cutter 3 | . . . . . . . . . . . . . . . . . . . . . . . . . . . . . 3 . . . . . . Grunt 34 | . . . 5 4 17 . . 1 . 1 1 . . . . . . . . 1 . . . . . . . . . 1 . . 2 . 1 Brawler 3 | . . . . 1 1 . . . . . . . . . . . . . . . . . . . . . . . . . . . . . 1 Duelist 1 | . . . . . 1 . . . . . . . . . . . . . . . . . . . . . . . . . . . . . . Sentry 23 | . . . 4 . 10 . . . . . . . . . . . . . 3 . 1 1 . . . . . . 1 . . . 2 . 1 Hunter 17 | . . . . . 2 . . . . . . . . . . . . . . . . . . . . . . . . . 2 . 2 . 11 Programmer 21 | . . . . . . . . . . . . . 1 . . . . . . . . 2 . 1 . . . . 3 . . . 3 4 7 Assembled 6 | . . 6 . . . . . . . . . . . . . . . . . . . . . . . . . . . . . . . . . Best Kill Streak 9 | . 6 3 9 4 5 1 . 1 . 1 2 1 1 . . 4 . 2 3 1 1 3 . 5 . 1 . . 3 1 4 2 4 4 5 Combat Bots Only 7 | . 6 3 7 3 5 . . 1 . 1 2 . 1 . . 2 . 2 1 1 1 2 . 5 . . . . 3 1 2 . 3 2 5 Max Kills in Single Turn 4 | . 1 1 2 3 4 1 . 1 . 1 1 1 1 . . 2 . 2 1 1 1 1 . 1 . 1 . . 1 1 1 1 2 1 2 Gunslinging . | . . . . . . . . . . . . . . . . . . . . . . . . . . . . . . . . . . . . Exploded 4 | . 1 . 1 2 4 . . 1 . . . . . . . 1 . 2 . . . . . . . . . . . . . . 2 . 1 Melee 1 | . . . 1 . 1 . . . . . 1 . 1 . . . . . 1 . . 1 . 1 . . . . 1 1 1 . 1 1 1 Uniques/NPCs Destroyed 1 | . . . . . . . . . . . . . . . . . . . . . . . . . . . . . . . . . . . 1 MAIN.C Shell (-1/Command) Combat | -11 -10 -10 -9 -9 -8 -7 -7 -7 -7 -6 -6 -6 -6 -6 -5 -5 -5 -5 -5 -5 -5 -4 -4 -4 -4 -4 -4 -3 -3 -3 -2 -2 -2 -1 -1 -------- Run | Scr Mat Min Mat Min Mat Fac Low Low Zio Pro Fac Low Low Dat Pro Fac Was Fac Ext Cet Arc Fac Was Fac Upp Upp War Pro Res Qua Res Tes Sec Acc Com Damage Taken 22500 | . 161 106 640 205 2499 33 . 39 . 12 233 . 80 . . 86 . 175 471 485 1233 629 . 890 . 44 18 . 1153 346 175 76 834 66 11811 Core 3147 | . 19 10 61 17 348 14 . 18 . . 77 . 14 . . 14 . 19 67 137 306 224 . 130 . 24 . . 245 40 53 32 148 33 1097 Absorbed by Shields 1786 | . . . . . . . . . . . . . . . . . . . 151 87 . . . . . . . . . . . . . . 1548 Reduced by Siege Mode 360 | . . . . . . . . . . . . . . . . . . . . . . . . . . . . . . . . . . . 360 Redirected to Shielding 265 | . 10 . . . . . . . . . . . . . . . . . . . . . . . . . . . . . . . 58 . 197 Regen/Repaired (Parts) 6681 | . . . 260 . 418 27 . . . . 33 . . . . 4 . 119 91 17 12 414 31 643 . . . . 179 509 149 44 392 99 3240 Core Remaining (%) 77 | 100 . 88 . 80 36 . . . . 95 . . . . 89 . . . . . 45 . . . . . . 67 . 70 . . 100 . . Volleys Fired 573 | . 17 18 49 15 116 2 . 3 . 1 . . 1 . . 4 . 15 8 4 13 62 . 13 5 6 . . . 3 . 2 35 11 170 Largest 3 | . 2 2 2 2 2 1 . 1 . 1 . . 1 . . 1 . 1 1 1 2 2 . 1 1 1 . . . 1 . 1 1 1 3 Hottest 180 | . 100 90 95 90 110 30 . 30 . . . . . . . 7 . 90 75 . 147 125 . 105 105 105 . . . 113 . 40 113 40 180 Shots Fired 819 | . 34 36 93 30 224 2 . 3 . 1 . . 1 . . 4 . 15 8 4 17 63 . 13 5 6 . . . 3 . 2 35 11 209 Gun 597 | . 32 29 57 30 217 . . . . . . . . . . . . . 8 . . 46 . . . . . . . . . 2 31 11 134 Cannon 186 | . 2 7 36 . 7 . . . . . . . . . . . . 13 . . 17 11 . 11 5 6 . . . 3 . . 4 . 64 Launcher 9 | . . . . . . 2 . 3 . . . . . . . . . . . . . . . . . . . . . . . . . . 4 Special 27 | . . . . . . . . . . 1 . . 1 . . 4 . 2 . 4 . 6 . 2 . . . . . . . . . . 7 Kinetic 216 | . . 7 23 . 67 . . . . . . . . . . . . . . . 7 46 . . . . . . . . . . 2 . 64 Thermal 160 | . 17 11 13 . 15 . . . . . . . . . . . . 13 8 . 10 12 . 11 5 6 . . . 3 . . 2 . 34 Explosive 19 | . . . . . . 2 . 3 . 1 . . 1 . . 2 . 2 . 4 . . . . . . . . . . . . . . 4 Electromagnetic 413 | . 17 18 57 30 142 . . . . . . . . . . . . . . . . . . . . . . . . . . 2 31 11 105 Robot Hit Streak 19 | . 3 6 11 12 16 . . . . . . . . . . 1 . 1 3 3 5 9 . 2 . . . . . . . . 3 8 19 Robot Miss Streak 6 | . 3 3 6 3 5 . . . . . . . . . . 1 . 1 1 2 5 2 . 2 . . . . . . . 2 3 . 2 Penetration Max 2 | . . . . . . . . . . . . . . . . . . . . . . 1 . . . . . . . . . . 1 . 2 Secondary Targets 8 | . 1 1 2 . 2 . . . . . . . . . . . . . . . . . . . . . . . . . . . . . 2 Max Gunslinging Chain 1 | . 1 1 1 . 1 . . . . . . . . . . . . . . . . . . . . . . . . . . . . . 1 Shots Hit Robots 856 | . 15 22 79 23 196 1 . . . 4 20 1 4 . . 9 . 6 36 6 11 50 . 35 . 5 . . 27 9 13 6 47 22 209 Core Hits 425 | . 12 15 38 15 103 1 . 2 . . 3 . . . . 5 . 5 4 11 3 17 . 9 . 2 . . 14 6 7 4 26 14 109 Critical Kills 6 | . . . . . . . . . . . 1 . . . . . . . 1 . . 3 . 1 . . . . . . . . . . . Critical Parts Destroyed 40 | . . . 2 . 4 . . . . . 5 . 2 . . 2 . 3 9 2 3 2 . 6 . . . . . . . . . . . Critical Strikes 62 | . 2 2 2 . 7 . . . . . 6 . 2 . . 2 . 3 13 2 3 5 . 8 . . . . . 1 . . 2 . 2 Burn 6 | . 2 1 . . 3 . . . . . . . . . . . . . . . . . . . . . . . . . . . . . . Destroy 4 | . . . . . . . . . . . . . . . . . . . . . 3 1 . . . . . . . . . . . . . Blast 1 | . . . . . . . . . . . . . . . . . . . . . . . . . . . . . . . . . . . 1 Corrupt 1 | . . 1 . . . . . . . . . . . . . . . . . . . . . . . . . . . . . . . . . Smash 45 | . . . 2 . 4 . . . . . 6 . 2 . . 2 . 3 13 2 . 4 . 7 . . . . . . . . . . . Sever 4 | . . . . . . . . . . . . . . . . . . . . . . . . . . . . . . 1 . . 2 . 1 Impale 1 | . . . . . . . . . . . . . . . . . . . . . . . . 1 . . . . . . . . . . . Melee Attacks 1152 | . . . 37 . 20 56 19 25 . 31 88 15 43 . 12 45 . 85 58 3 4 78 . 155 4 13 2 13 67 26 55 23 85 46 44 Impact 710 | . . . 37 . 20 50 19 25 . 31 88 15 43 . 12 45 . 85 58 3 4 78 . 97 . . . . . . . . . . . Slashing 275 | . . . . . . 6 . . . . . . . . . . . . . . . . . . . . . . . 17 55 22 85 46 44 Piercing 167 | . . . . . . . . . . . . . . . . . . . . . . . . 58 4 13 2 13 67 9 . 1 . . . Sneak Attacks 83 | . . . 10 . 4 . . . . . 4 1 . . . 4 . 1 9 . . 4 . 3 . 2 . . 4 3 2 2 13 7 10 Combat Hostiles 20 | . . . 1 . . . . . . . 2 . . . . . . . 6 . . . . . . . . . . 1 . . 5 . 5 Follow-up Attacks 17 | . . . 4 . 2 . . . . 1 1 . . . . . . 5 4 . . . . . . . . . . . . . . . . Damage Inflicted 44040 | . 250 310 1952 713 4245 80 . 60 . 204 1167 109 207 . . 1092 . 833 2320 858 505 1830 . 1856 . 278 . . 1831 825 1433 670 4251 2016 14145 Guns 7085 | . 174 201 673 372 3134 . . . . . . . . . . . . . 145 . . 945 . . . . . . . . . 2 32 10 1397 Cannons 8413 | . 36 109 359 . 102 . . . . . . . . . . . . . . . 329 35 . 75 . . . . . . . . . . 7368 Explosions 4426 | . 40 . 99 341 580 . . 60 . . . . . . . 389 . 434 . 541 . . . . . . . . . . . . 235 . 1707 Melee 23733 | . . . 821 . 398 80 . . . 204 1167 109 207 . . 665 . 366 2175 206 176 832 . 1781 . 278 . . 1831 825 1433 668 3984 2006 3521 Ramming 110 | . . . . . 31 . . . . . . . . . . . . . . . . . . . . . . . . . . . . . 79 Kinetic 9621 | . . 109 220 . 875 . . . . . . . . . . . . . . . 104 945 . . . . . . . . . . . . 7368 Thermal 3662 | . 139 75 238 341 767 . . . . . . . . . . . . . 145 . 225 53 . 75 . . . . . . . . 235 . 1369 Explosive 2599 | . . . . . . . . 60 . . . . . . . 389 . 434 . 541 . . . . . . . . . . . . . . 1175 Electromagnetic 4133 | . 111 126 673 372 2174 . . . . . . . . . . . . . . . . . . . . . . . . . . 2 32 10 633 Impact 8386 | . . . 821 . 398 80 . . . 204 1167 109 207 . . 665 . 366 2175 206 176 832 . 980 . . . . . . . . . . . Slashing 12405 | . . . . . . . . . . . . . . . . 38 . 33 . 111 . . . . . . . . . 611 1433 668 3984 2006 3521 Piercing 3124 | . . . . . . . . . . . . . . . . . . . . . . . . 801 . 278 . . 1831 214 . . . . . Highest Corruption 9 | . . . . . . 1 . . . . . . 2 2 2 . 9 9 . . 3 9 . 2 . . . . . . . . . . 3 Average Corruption 2 | . . . . . . 1 . . . . . . 1 2 1 . 9 5 . . 2 3 . 1 . . . . . . . . . . 2 Corruption Purged 24 | . . . . . . 1 . . . . . . . . 2 . . 9 . . . 10 . 2 . . . . . . . . . . . Corruption Blocked . | . . . . . . . . . . . . . . . . . . . . . . . . . . . . . . . . . . . . Effects 16 | . . . . . . . . . . . . . 1 1 1 . 1 1 . . 2 8 . 1 . . . . . . . . . . . Message Errors 4 | . . . . . . . . . . . . . . . . . . . . . 1 3 . . . . . . . . . . . . . Matter Fused 3 | . . . . . . . . . . . . . 1 . 1 . . . . . . 1 . . . . . . . . . . . . . Heat Flow Errors 4 | . . . . . . . . . . . . . . . . . 1 . . . 1 2 . . . . . . . . . . . . . Energy Discharges 2 | . . . . . . . . . . . . . . 1 . . . 1 . . . . . . . . . . . . . . . . . Data Loss (minor) 1 | . . . . . . . . . . . . . . . . . . . . . . 1 . . . . . . . . . . . . . Data Loss (major) 2 | . . . . . . . . . . . . . . . . . . . . . . 1 . 1 . . . . . . . . . . . Overload Shots . | . . . . . . . . . . . . . . . . . . . . . . . . . . . . . . . . . . . . Overflow Damage 6852 | . . . 193 47 205 . . 3 . 4 550 89 177 . . 472 . 372 855 186 4 304 . 721 . 111 . . 146 155 188 108 850 455 657 Projectiles 188 | . . . . . 4 . . . . . . . . . . . . . . . 4 . . . . . . . . . . . . . 180 Explosions 180 | . . . . 47 7 . . 3 . . . . . . . 11 . 50 . 32 . . . . . . . . . . . . . . 30 Melee 6484 | . . . 193 . 194 . . . . 4 550 89 177 . . 461 . 322 855 154 . 304 . 721 . 111 . . 146 155 188 108 850 455 447 Knockbacks 49 | . . . 3 . 2 . . . . 2 7 1 2 . . 3 . . 3 2 1 3 . 3 . . . . . . . . . . 17 Impact 29 | . . . 1 . 1 . . . . 2 7 1 2 . . 3 . . 3 2 . 3 . 3 . . . . . . . . . . 1 Kinetic 19 | . . . 2 . . . . . . . . . . . . . . . . . 1 . . . . . . . . . . . . . 16 Secondary 1 | . . . . . 1 . . . . . . . . . . . . . . . . . . . . . . . . . . . . . . Self-Inflicted Damage 426 | . . . 20 9 70 . . 23 . . . . . . . . . . . . . . . . . . . . . . . . . . 304 Shots 10 | . . . 1 1 3 . . 1 . . . . . . . . . . . . . . . . . . . . . . . . . . 4 Rammed 8 | . . . . . 3 . . . . . . . . . . . . . . . . . . . . . . . . . . . . . 5 Targets Rammed 8 | . . . . . 3 . . . . . . . . . . . . . . . . . . . . . . . . . . . . . 5 Kicked . | . . . . . . . . . . . . . . . . . . . . . . . . . . . . . . . . . . . . Crushed . | . . . . . . . . . . . . . . . . . . . . . . . . . . . . . . . . . . . . Highest Temperature 320 | . 120 254 261 4 43 . . . . 34 113 . 4 . 2 3 106 138 320 . 281 186 . 124 127 150 18 . 2 . 3 . 2 . 5 Average Temperature 54 | . 47 81 70 1 16 . . . . 22 41 . 4 . 1 2 103 41 136 . 146 42 . 43 51 61 12 . 1 . 3 . 1 . 2 Received Heat Transfer 3328 | . . 20 162 75 1035 18 . 9 . 60 39 . 9 . . 9 . 54 86 70 216 84 . 27 . . 27 . 81 69 . 9 63 . 1106 Effects 3 | . . . . . . . . . . . . . . . . . . . . . 3 . . . . . . . . . . . . . . Interference 3 | . . . . . . . . . . . . . . . . . . . . . 3 . . . . . . . . . . . . . . Siege Activations 2 | . . . . . . . . . . . . . . . . . . . . . . . . . . . . . . . . . . . 2 Total Turns 171 | . . . . . . . . . . . . . . . . . . . . . . . . . . . . . . . . . . . 171 Longest Duration 115 | . . . . . . . . . . . . . . . . . . . . . . . . . . . . . . . . . . . 115 Robots Corrupted 5 | . . . . . 3 . . . . . . . . . . . . . . . . . . . . . . . . . . . . . 2 Combat Hostiles 5 | . . . . . 3 . . . . . . . . . . . . . . . . . . . . . . . . . . . . . 2 Parts Fried 88 | . . 2 11 . 21 . . . . 1 4 2 1 . . 5 . 4 8 2 . 6 . 13 . . . . 2 . . . . . 6 Impact Corruptions 121 | . . 1 10 . 9 . . . . 1 17 3 7 . . 14 . 10 19 3 . 7 . 20 . . . . . . . . . . . Robots Melted . | . . . . . . . . . . . . . . . . . . . . . . . . . . . . . . . . . . . . Combat Hostiles . | . . . . . . . . . . . . . . . . . . . . . . . . . . . . . . . . . . . . Parts Melted 8 | . 1 . . . 1 . . . . . . . . . . . . . . . . 1 . . . . . . . . . . . . 5 Heat Transferred 4451 | . 407 296 296 550 1379 . . . . . . . . . . . . . 185 . . 74 . 74 . . . . . . . . 150 . 1040 Parts Sabotaged . | . . . . . . . . . . . . . . . . . . . . . . . . . . . . . . . . . . . . Parts Stolen . | . . . . . . . . . . . . . . . . . . . . . . . . . . . . . . . . . . . . Parts Stripped . | . . . . . . . . . . . . . . . . . . . . . . . . . . . . . . . . . . . . Power Chain Reactions 21 | . 1 . 2 6 8 . . . . . . . . . . . . . . . . . . . . . . . . . . . 1 . 3 Missiles Intercepted 15 | . . . . . . . . . . . . . . . . . . . . . . . . . . . . . . . . . . . 15 Alert | -11 -10 -10 -9 -9 -8 -7 -7 -7 -7 -6 -6 -6 -6 -6 -5 -5 -5 -5 -5 -5 -5 -4 -4 -4 -4 -4 -4 -3 -3 -3 -2 -2 -2 -1 -1 ------- Run | Scr Mat Min Mat Min Mat Fac Low Low Zio Pro Fac Low Low Dat Pro Fac Was Fac Ext Cet Arc Fac Was Fac Upp Upp War Pro Res Qua Res Tes Sec Acc Com Peak Influence 575 | . 257 56 448 233 328 417 . . . . 219 . . . . 244 45 383 292 559 265 235 58 422 . . . . 508 276 250 104 575 386 510 Initial 344 | . . 11 . 109 37 98 . . . . . . . . . 23 . 31 112 76 223 73 58 40 . . . . . 207 76 24 16 344 40 Average 140 | . 44 11 172 105 155 142 . . . . 107 . . . . 104 19 152 127 322 223 77 58 185 . . . . 261 82 83 49 206 66 262 Maximum Alert Level 2 | . 1 . 2 1 1 2 . . . . 1 . . . . 1 . 1 1 2 1 1 . 2 . . . . 2 1 1 . 2 1 2 Low Security (%) 71 | 100 98 100 57 94 74 76 . . . . 86 . . . . 90 100 58 76 16 4 99 100 51 . . . . 20 87 93 100 55 95 36 Level 1 24 | . 1 . 40 5 25 23 . . . . 13 . . . . 9 . 41 23 52 95 . . 45 . . . . 69 12 6 . 34 4 33 Level 2 3 | . . . 1 . . . . . . . . . . . . . . . . 30 . . . 2 . . . . 10 . . . 10 . 30 Level 3 . | . . . . . . . . . . . . . . . . . . . . . . . . . . . . . . . . . . . . Level 4 . | . . . . . . . . . . . . . . . . . . . . . . . . . . . . . . . . . . . . Level 5 . | . . . . . . . . . . . . . . . . . . . . . . . . . . . . . . . . . . . . High Security . | . . . . . . . . . . . . . . . . . . . . . . . . . . . . . . . . . . . . Max Security . | . . . . . . . . . . . . . . . . . . . . . . . . . . . . . . . . . . . . Squads Dispatched 98 | . 2 . 4 . 6 5 . . . . 2 . . . . 5 . 6 . . . 10 . 14 . . . . 9 3 5 1 11 10 5 Investigation 43 | . 2 . 3 . 1 4 . . . . 1 . . . . 4 . 5 . . . 2 . 5 . . . . 3 . 3 1 2 7 . Extermination 26 | . . . . . . . . . . . 1 . . . . 1 . 1 . . . 3 . 4 . . . . 2 2 1 . 5 3 3 Reinforcement 21 | . . . 1 . 2 1 . . . . . . . . . . . . . . . 5 . 4 . . . . 3 1 1 . 2 . 1 Assault 4 | . . . . . . . . . . . . . . . . . . . . . . . . 1 . . . . . . . . 2 . 1 Garrison 4 | . . . . . 3 . . . . . . . . . . . . . . . . . . . . . . . 1 . . . . . . Intercept . | . . . . . . . . . . . . . . . . . . . . . . . . . . . . . . . . . . . . Searches Triggered 2 | . . . . . . . . . . . . . . . . . . . . . . . . . . . . . 2 . . . . . . Data Miner Redirects 14 | . . . . . . . . . . . . . . . . 1 . 2 . . . 1 . 2 . . . . 2 . 1 1 1 3 . Construction Impeded 4 | . . . . . 1 . . . . . . . . . . . . . . . . 1 . 2 . . . . . . . . . . . Haulers Reinforced 1 | . . . . . . . . . . . . . . . . . . . . . . . . . . . . . . . . . 1 . . Active Scanning Responses . | . . . . . . . . . . . . . . . . . . . . . . . . . . . . . . . . . . . . Cargo Convoy Interrupts . | . . . . . . . . . . . . . . . . . . . . . . . . . . . . . . . . . . . . Stealth | -11 -10 -10 -9 -9 -8 -7 -7 -7 -7 -6 -6 -6 -6 -6 -5 -5 -5 -5 -5 -5 -5 -4 -4 -4 -4 -4 -4 -3 -3 -3 -2 -2 -2 -1 -1 --------- Run | Scr Mat Min Mat Min Mat Fac Low Low Zio Pro Fac Low Low Dat Pro Fac Was Fac Ext Cet Arc Fac Was Fac Upp Upp War Pro Res Qua Res Tes Sec Acc Com Distress Signals 29 | . . . . . 2 3 . . . . 1 . . . . 2 . 1 . 1 . 5 . 3 . . . . 4 . . . 5 . 2 Communications Jammed 137 | . . . . . . . . . . . . . . . . . . . . . . 26 . 29 . . . . 13 15 14 . 40 . . Distress Signals 82 | . . . . . . . . . . . . . . . . . . . . . . . . 29 . . . . 2 5 14 . 32 . . Times Spotted 579 | . 14 9 42 11 48 25 . 4 . 8 18 . 4 . . 12 3 30 15 13 14 37 . 56 . 2 3 . 46 25 11 6 50 16 57 Peak Tracking Total 15 | . 3 3 8 3 6 10 . 3 . 4 6 . 3 . . 4 3 6 3 5 2 15 . 5 . 2 3 . 9 7 3 2 7 7 10 Tactical Retreats 100 | . . 1 2 . . 8 . 4 . 1 6 . 2 . . 2 . 7 . 1 . 8 . 12 . . . . 17 10 1 1 12 4 1 Traps | -11 -10 -10 -9 -9 -8 -7 -7 -7 -7 -6 -6 -6 -6 -6 -5 -5 -5 -5 -5 -5 -5 -4 -4 -4 -4 -4 -4 -3 -3 -3 -2 -2 -2 -1 -1 ------- Run | Scr Mat Min Mat Min Mat Fac Low Low Zio Pro Fac Low Low Dat Pro Fac Was Fac Ext Cet Arc Fac Was Fac Upp Upp War Pro Res Qua Res Tes Sec Acc Com Traps Triggered 20 | . . . 1 . 4 1 . . . . . . . . . 1 . 1 3 . . 2 . 5 . . . . . . . . 1 1 . Indirectly . | . . . . . . . . . . . . . . . . . . . . . . . . . . . . . . . . . . . . Trap Hack Attempts . | . . . . . . . . . . . . . . . . . . . . . . . . . . . . . . . . . . . . Triggered . | . . . . . . . . . . . . . . . . . . . . . . . . . . . . . . . . . . . . Disarmed 33 | . . . . . . . . . . . . . . . . . . 6 . . . 6 . 15 . . . . . 6 . . . . . Reprogrammed 68 | . . . . . . 4 . . . . 4 . . . . . . 3 . . . . . 12 . . . . 24 14 . . 7 . . Reused 40 | . . . . . . 4 3 3 . 2 . . 3 . . . . 1 . . . . . 9 . 1 . . 9 2 . . 3 . . Traps Extracted 16 | . . . . . . . 7 7 . 2 . . . . . . . . . . . . . . . . . . . . . . . . . Installed 24 | . . . . . . . 5 5 . 6 . . 3 . . . . . . . . . . . . 5 . . . . . . . . . Triggered 54 | . . . . . . 4 3 2 . 2 . . 3 . . . . 1 . . . . . 9 . 4 11 . 9 3 . . 3 . . Most Traps Carried 4 | . . . . . . . 3 4 4 4 . 3 3 . . . . . . . . . . . . 1 . . . . . . . . . Machines | -11 -10 -10 -9 -9 -8 -7 -7 -7 -7 -6 -6 -6 -6 -6 -5 -5 -5 -5 -5 -5 -5 -4 -4 -4 -4 -4 -4 -3 -3 -3 -2 -2 -2 -1 -1 ---------- Run | Scr Mat Min Mat Min Mat Fac Low Low Zio Pro Fac Low Low Dat Pro Fac Was Fac Ext Cet Arc Fac Was Fac Upp Upp War Pro Res Qua Res Tes Sec Acc Com Machines Disabled 30 | . . . 2 . 1 . . . . . . . . . . 1 . 1 . 3 3 1 . 1 . . . . 1 4 1 4 5 . 2 Max in Single Turn 1 | . . . 1 . 1 . . . . . . . . . . 1 . 1 . . 1 1 . . . . . . 1 1 1 1 1 . 1 Garrison Access 27 | . . . . . . 3 . . . . 3 . . . . 2 . 4 . . . 1 . 4 . . . . 4 . 2 1 1 2 . Machines Sabotaged . | . . . . . . . . . . . . . . . . . . . . . . . . . . . . . . . . . . . . Garrisons Compromised . | . . . . . . . . . . . . . . . . . . . . . . . . . . . . . . . . . . . . Overloaded Fab Kills . | . . . . . . . . . . . . . . . . . . . . . . . . . . . . . . . . . . . . Hacking | -11 -10 -10 -9 -9 -8 -7 -7 -7 -7 -6 -6 -6 -6 -6 -5 -5 -5 -5 -5 -5 -5 -4 -4 -4 -4 -4 -4 -3 -3 -3 -2 -2 -2 -1 -1 --------- Run | Scr Mat Min Mat Min Mat Fac Low Low Zio Pro Fac Low Low Dat Pro Fac Was Fac Ext Cet Arc Fac Was Fac Upp Upp War Pro Res Qua Res Tes Sec Acc Com Machines Accessed 321 | . 10 . 14 . 12 26 . . . . 27 . . 4 . 18 . 28 8 1 . 27 . 30 1 2 6 . 23 15 18 12 19 15 5 Terminals 169 | . 8 . 11 . 7 15 . . . . 11 . . . . 7 . 14 8 1 . 13 . 13 . . . . 10 10 8 8 14 7 4 Fabricators 30 | . . . . . . 4 . . . . 2 . . . . 3 . 4 . . . 4 . 4 . . . . 2 . 2 1 . 4 . Repair Stations 30 | . . . 1 . 2 2 . . . . 4 . . . . 2 . 3 . . . 4 . 4 . . . . 2 2 2 . 1 . 1 Recycling Units 24 | . 2 . 2 . 1 1 . . . . 4 . . . . 2 . 1 . . . 3 . 3 . . . . 3 . 2 . . . . Scanalyzers 25 | . . . . . 1 1 . . . . 3 . . . . 2 . 2 . . . 2 . 2 . . . . 2 3 2 2 3 . . Garrison Access 30 | . . . . . 1 3 . . . . 3 . . . . 2 . 4 . . . 1 . 4 . . . . 4 . 2 1 1 4 . Total Hacks 1247 | . 32 . 44 . 47 98 . . . . 122 . . 29 . 81 . 108 29 3 . 119 . 134 1 6 18 . 98 63 76 36 47 44 12 Successful 998 | . 18 . 35 . 31 72 . . . . 74 . . 29 . 72 . 91 27 1 . 92 . 116 1 6 18 . 78 57 57 30 44 39 10 Failed 246 | . 13 . 9 . 16 26 . . . . 47 . . . . 9 . 17 2 2 . 27 . 18 . . . . 20 6 19 5 3 5 2 Catastrophic 15 | . . . . . 2 2 . . . . 3 . . . . . . 1 . . . 3 . 1 . . . . . . 3 . . . . Database Lockouts 3 | . 1 . . . . . . . . . 1 . . . . . . . . . . . . . . . . . . . . 1 . . . Manual 503 | . 19 . 22 . 19 40 . . . . 55 . . . . 38 . 45 14 1 . 53 . 56 . . . . 41 17 27 16 16 17 7 Terminals 723 | . 29 . 36 . 27 53 . . . . 69 . . . . 36 . 70 29 3 . 68 . 79 . . . . 47 44 36 28 37 22 10 Fabricators 118 | . . . . . . 15 . . . . 10 . . . . 13 . 13 . . . 13 . 15 . . . . 10 . 11 2 . 16 . Repair Stations 117 | . . . 6 . 13 8 . . . . 7 . . . . 5 . 9 . . . 19 . 22 . . . . 11 9 4 . 2 . 2 Recycling Units 80 | . 3 . 2 . 2 6 . . . . 13 . . . . 9 . 4 . . . 11 . 10 . . . . 13 . 7 . . . . Scanalyzers 116 | . . . . . 3 11 . . . . 20 . . . . 16 . 7 . . . 6 . 4 . . . . 11 10 16 5 7 . . Garrison Access 39 | . . . . . 2 5 . . . . 3 . . . . 2 . 5 . . . 2 . 4 . . . . 6 . 2 1 1 6 . Terminal Hacks 427 | . 11 . 18 . 11 23 . . . . 26 . . 29 . 18 . 38 23 1 . 35 . 47 1 6 18 . 21 29 14 15 24 15 4 Record 22 | . . . . . 1 . . . . . . . . 11 . . . . . . . . . . . 5 4 . . . . . . 1 . Part Schematic 64 | . 2 . . . 1 4 . . . . 9 . . 9 . 3 . 6 5 . . 2 . 4 . . . . 4 3 4 6 1 1 . Robot Schematic 7 | . . . . . . . . . . . . . . 6 . . . . 1 . . . . . . . . . . . . . . . . Robot Analysis 16 | . . . 4 . . 1 . . . . . . . . . . . 3 . . . 3 . 1 . . . . . 3 . . . 1 . Prototype ID Bank 56 | . 3 . 3 . 2 4 . . . . 2 . . 3 . 1 . 4 4 . . 2 . 6 . . 12 . 2 4 . 1 2 1 . Open Door 12 | . . . . . . . . . . . . . . . . . . . . 1 . . . . 1 1 2 . 1 . . . 5 . 1 Level Access Points 4 | . . . . . . . . . . . . . . . . . . . . . . . . 1 . . . . 1 1 . . 1 . . Branch Access Points 11 | . 2 . 1 . . 1 . . . . 1 . . . . . . 1 . . . 1 . 1 . . . . 1 . 1 . . 1 . Machine Index 9 | . . . . . . 1 . . . . . . . . . 1 . 1 1 . . 1 . 1 . . . . 1 . . . 1 1 . Terminal Index 12 | . 1 . 1 . 1 . . . . . 1 . . . . 1 . . 1 . . 1 . . . . . . 1 1 1 1 . . 1 Fabricator Index 3 | . . . . . . . . . . . 1 . . . . . . . . . . 1 . . . . . . . . 1 . . . . Repair Station Index 1 | . . . . . . . . . . . . . . . . . . . . . . . . . . . . . . 1 . . . . . Recycling Unit Index 2 | . . . 1 . . . . . . . . . . . . . . . . . . . . . . . . . . . . 1 . . . Scanalyzer Index 2 | . . . . . . . . . . . . . . . . . . . . . . . . . . . . . . 1 1 . . . . Garrison Index 2 | . . . . . . . . . . . . . . . . . . . . . . 1 . . . . . . . . 1 . . . . Alert Level 13 | . 1 . 1 . 1 . . . . . 1 . . . . . . 1 2 . . . . 1 . . . . 1 . 1 . 1 1 1 Unreport Threat 38 | . . . 2 . 1 3 . . . . 2 . . . . 1 . 3 2 . . 5 . 4 . . . . 3 4 2 2 1 3 . Locate Traps 33 | . . . 1 . 1 2 . . . . 1 . . . . 2 . 2 2 . . 5 . 6 . . . . 1 2 . 2 4 1 1 Disarm Traps 7 | . . . . . . . . . . . . . . . . . . 1 . . . 1 . 4 . . . . . 1 . . . . . Reprogram Traps 14 | . . . . . . 1 . . . . 1 . . . . . . 1 . . . . . 2 . . . . 4 3 . . 2 . . Dispatch Records 1 | . . . . . . . . . . . . . . . . . . . . . . . . . . . . . . . . . 1 . . Patrol Status 3 | . . . . . . . . . . . . . . . . 1 . . . . . . . . . . . . . . . 1 . 1 . Recall Investigation 19 | . . . . . . 4 . . . . . . . . . 3 . 4 . . . 3 . 2 . . . . . . 1 . . 2 . Recall Extermination 17 | . . . . . . . . . . . 1 . . . . 1 . 1 . . . 3 . 4 . . . . 1 2 1 . 3 . . Recall Reinforcements 4 | . . . . . . . . . . . . . . . . . . . . . . 1 . 1 . . . . . 1 . . 1 . . Hauler Manifests 9 | . 1 . 1 . 1 . . . . . . . . . . 1 . 1 1 . . . . . . . . . . 1 . 1 . 1 . Registered Components 5 | . 1 . . . . . . . . . 1 . . . . . . . . . . 1 . 1 . . . . . . . . 1 . . Zone Layout 41 | . . . 3 . 2 2 . . . . 5 . . . . 3 . 9 4 . . 4 . 8 . . . . . 1 . . . . . Fabricator Hacks 67 | . . . . . . 8 . . . . 3 . . . . 8 . 9 . . . 6 . 9 . . . . 6 . 7 1 . 10 . Network Status 9 | . . . . . . 1 . . . . 1 . . . . 1 . 1 . . . 1 . 1 . . . . 1 . 1 . . 1 . Load Schematic 30 | . . . . . . 3 . . . . 1 . . . . 3 . 4 . . . 3 . 4 . . . . 3 . 3 1 . 5 . Build 28 | . . . . . . 4 . . . . 1 . . . . 4 . 4 . . . 2 . 4 . . . . 2 . 3 . . 4 . Repair Station Hacks 106 | . . . 6 . 12 5 . . . . 7 . . . . 4 . 9 . . . 16 . 21 . . . . 9 9 4 . 2 . 2 Scan Component 50 | . . . 3 . 6 2 . . . . 3 . . . . 2 . 4 . . . 7 . 11 . . . . 4 4 2 . 1 . 1 Repair 47 | . . . 3 . 6 2 . . . . 3 . . . . 1 . 4 . . . 7 . 10 . . . . 3 4 2 . 1 . 1 Refit 9 | . . . . . . 1 . . . . 1 . . . . 1 . 1 . . . 2 . . . . . . 2 1 . . . . . Recycling Unit Hacks 24 | . 1 . . . 1 2 . . . . 4 . . . . 3 . 1 . . . 3 . 3 . . . . 4 . 2 . . . . Report Inventory 21 | . 1 . . . 1 1 . . . . 4 . . . . 2 . 1 . . . 3 . 3 . . . . 3 . 2 . . . . Retrieve Components 3 | . . . . . . 1 . . . . . . . . . 1 . . . . . . . . . . . . 1 . . . . . . Scanalyzer 110 | . . . . . 3 11 . . . . 17 . . . . 16 . 7 . . . 6 . 4 . . . . 11 9 16 4 6 . . Insert Component 51 | . . . . . 2 4 . . . . 8 . . . . 6 . 3 . . . 3 . 2 . . . . 5 6 4 2 6 . . Analyze 59 | . . . . . 1 7 . . . . 9 . . . . 10 . 4 . . . 3 . 2 . . . . 6 3 12 2 . . . Garrison Access Hacks 26 | . . . . . . 3 . . . . 3 . . . . 2 . 4 . . . 1 . 4 . . . . 3 . 2 1 1 2 . Seal Access 26 | . . . . . . 3 . . . . 3 . . . . 2 . 4 . . . 1 . 4 . . . . 3 . 2 1 1 2 . Unauthorized Hacks 238 | . 6 . 11 . 4 20 . . . . 14 . . . . 21 . 23 4 . . 25 . 28 . . . . 24 10 12 9 11 12 4 Terminals 148 | . 4 . 9 . 3 10 . . . . 6 . . . . 11 . 16 4 . . 13 . 16 . . . . 13 9 6 8 10 6 4 Track 39 | . . . 1 . . 3 . . . . 1 . . . . 2 . 4 . . . 4 . 6 . . . . 2 3 2 2 5 1 3 Assimilate 44 | . 1 . 4 . 1 3 . . . . 1 . . . . 5 . 8 1 . . 1 . 3 . . . . 5 2 1 4 1 3 . Botnet 38 | . 2 . 3 . 1 2 . . . . 3 . . . . 3 . 3 2 . . 4 . 4 . . . . 3 3 1 1 2 1 . Disrupt 9 | . . . . . . . . . . . . . . . . . . . . . . 3 . 2 . . . . 2 . 1 . 1 . . Operators 18 | . 1 . 1 . 1 2 . . . . 1 . . . . 1 . 1 1 . . 1 . 1 . . . . 1 1 1 1 1 1 1 Fabricators 38 | . . . . . . 7 . . . . 3 . . . . 5 . 4 . . . 6 . 5 . . . . 2 . 2 1 . 3 . Report 4 | . . . . . . 2 . . . . 1 . . . . . . . . . . 1 . . . . . . . . . . . . . Prioritize 20 | . . . . . . 2 . . . . . . . . . 3 . 3 . . . 2 . 4 . . . . 1 . 2 . . 3 . Liberate 7 | . . . . . . 2 . . . . 1 . . . . 2 . . . . . 2 . . . . . . . . . . . . . Haulers 4 | . . . . . . 1 . . . . 1 . . . . . . 1 . . . 1 . . . . . . . . . . . . . Recompile 3 | . . . . . . . . . . . . . . . . . . . . . . . . 1 . . . . 1 . . 1 . . . Repair Stations . | . . . . . . . . . . . . . . . . . . . . . . . . . . . . . . . . . . . . Recycling Units 46 | . 2 . 2 . 1 3 . . . . 5 . . . . 5 . 3 . . . 6 . 7 . . . . 8 . 4 . . . . Monitor 1 | . . . . . . . . . . . . . . . . . . . . . . . . . . . . . 1 . . . . . . Reject 18 | . . . . . 1 1 . . . . 2 . . . . 2 . 1 . . . 3 . 3 . . . . 3 . 2 . . . . Recyclers 6 | . . . . . . 1 . . . . . . . . . 1 . 1 . . . 1 . 1 . . . . 1 . . . . . . Mask 17 | . . . . . . 1 . . . . 3 . . . . 2 . 1 . . . 2 . 3 . . . . 3 . 2 . . . . Tunnel 4 | . 2 . 2 . . . . . . . . . . . . . . . . . . . . . . . . . . . . . . . . Scanalyzers 2 | . . . . . . . . . . . . . . . . . . . . . . . . . . . . . . 1 . . 1 . . Researchers 2 | . . . . . . . . . . . . . . . . . . . . . . . . . . . . . . 1 . . 1 . . Garrison Access 4 | . . . . . . . . . . . . . . . . . . . . . . . . . . . . . 1 . . . . 3 . Reprogram 2 | . . . . . . . . . . . . . . . . . . . . . . . . . . . . . . . . . . 2 . Watchers 1 | . . . . . . . . . . . . . . . . . . . . . . . . . . . . . . . . . . 1 . Jam 1 | . . . . . . . . . . . . . . . . . . . . . . . . . . . . . 1 . . . . . . Data Cores Recovered 1 | . . . . . . . . . . . . . . . . . . . . . . . . 1 . . . . . . . . . . . Used 1 | . . . . . . . . . . . . . . . . . . . . . . . . 1 . . . . . . . . . . . Hacking Detections 229 | . 8 . 11 . 12 23 . . . . 16 . . . . 15 . 20 5 1 . 19 . 18 . . . . 16 13 15 10 10 12 5 Full Trace Events 29 | . . . . . 1 4 . . . . 1 . . . . 3 . 5 . . . 2 . 3 . . . . 1 . 3 . 2 4 . Feedback Events 3 | . . . . . . 1 . . . . . . . . . . . 1 . . . . . . . . . . . . 1 . . . . Corruption 1 | . . . . . . 1 . . . . . . . . . . . . . . . . . . . . . . . . . . . . . Hackware Fried 2 | . . . . . . . . . . . . . . . . . . 1 . . . . . . . . . . . . 1 . . . . Feedback Blocked . | . . . . . . . . . . . . . . . . . . . . . . . . . . . . . . . . . . . . Robot Schematics Acquired 7 | . . . . . . . . . . . . . . 6 . . . . 1 . . . . . . . . . . . . . . . . Robots Built 3 | . . . . . . . . . . . . . . . . . . . . . . . . 3 . . . . . . . . . . . Authchips . | . . . . . . . . . . . . . . . . . . . . . . . . . . . . . . . . . . . . Time 169 | . . . . . . . . . . . . . . . . . . . . . . . . 169 . . . . . . . . . . . Total Robot Build Rating 18 | . . . . . . . . . . . . . . . . . . . . . . . . 18 . . . . . . . . . . . Part Schematics Acquired 104 | . 2 . . . 2 8 . . . . 16 . . 9 . 9 . 9 5 . . 5 . 6 . . . . 9 6 8 8 1 1 . Parts Built 28 | . . . . . . 5 . . . . 1 . . . . 4 . 4 . . . 2 . 3 . . . . 2 . 3 . . 4 . Authchips 3 | . . . . . . . . . . . . . . . . . . . . . . . . . . . . . 1 . 1 . . 1 . Time 1263 | . . . . . . 224 . . . . 47 . . . . 238 . 139 . . . 67 . 209 . . . . 62 . 128 . . 149 . Total Part Build Rating 178 | . . . . . . 24 . . . . 5 . . . . 24 . 25 . . . 15 . 21 . . . . 14 . 22 . . 28 . Parts Repaired 47 | . . . 3 . 6 2 . . . . 3 . . . . 1 . 4 . . . 7 . 10 . . . . 3 4 2 . 1 . 1 Time 1918 | . . . 140 . 205 35 . . . . 150 . . . . 28 . 168 . . . 268 . 499 . . . . 92 139 85 . 80 . 29 Parts Recycled . | . . . . . . . . . . . . . . . . . . . . . . . . . . . . . . . . . . . . Recycled Matter . | . . . . . . . . . . . . . . . . . . . . . . . . . . . . . . . . . . . . Retrieved Matter . | . . . . . . . . . . . . . . . . . . . . . . . . . . . . . . . . . . . . Retrieved Components 19 | . . . . . . 1 . . . . . . . . . 9 . . . . . . . . . . . . 9 . . . . . . Parts Scanalyzed 40 | . . . . . 1 4 . . . . 7 . . . . 6 . 3 . . . 3 . 2 . . . . 5 3 4 2 . . . Part Schematics Acquired 40 | . . . . . 1 4 . . . . 7 . . . . 6 . 3 . . . 3 . 2 . . . . 5 3 4 2 . . . Parts Damaged 4 | . . . . . . . . . . . 2 . . . . . . . . . . . . . . . . . . . 2 . . . . Bothacking | -11 -10 -10 -9 -9 -8 -7 -7 -7 -7 -6 -6 -6 -6 -6 -5 -5 -5 -5 -5 -5 -5 -4 -4 -4 -4 -4 -4 -3 -3 -3 -2 -2 -2 -1 -1 ------------ Run | Scr Mat Min Mat Min Mat Fac Low Low Zio Pro Fac Low Low Dat Pro Fac Was Fac Ext Cet Arc Fac Was Fac Upp Upp War Pro Res Qua Res Tes Sec Acc Com Used RIF Installer . | . . . . . . . . . . . . . . . . . . . . . . . . . . . . . . . . . . . . Robots Hacked 4 | . . . . . . . . . . . . . . . . 1 . . . . . 1 . 1 . . . . . . . . . . 1 Non-combat 2 | . . . . . . . . . . . . . . . . 1 . . . . . 1 . . . . . . . . . . . . . Combat 1 | . . . . . . . . . . . . . . . . . . . . . . . . . . . . . . . . . . . 1 Robot Hacks Applied 3 | . . . . . . . . . . . . . . . . 1 . . . . . 1 . . . . . . . . . . . . 1 parse_system 1 | . . . . . . . . . . . . . . . . . . . . . . . . . . . . . . . . . . . 1 find_chute 2 | . . . . . . . . . . . . . . . . 1 . . . . . 1 . . . . . . . . . . . . . Manual 2 | . . . . . . . . . . . . . . . . . . . . . . . . 1 . . . . . . . . . . 1 Relay Couplers Released . | . . . . . . . . . . . . . . . . . . . . . . . . . . . . . . . . . . . . Fabnet Peak Effective % . | . . . . . . . . . . . . . . . . . . . . . . . . . . . . . . . . . . . . Robots Rewired 16 | . . . . . . . . . . . . . . . . . . . 8 . . . . . . . 5 . . . . . . 1 2 Allies Hacked 3 | . . . . . . . . . . . . . . . . . . . . . . . . . . . . 2 . . . . . 1 . Hacks Repelled . | . . . . . . . . . . . . . . . . . . . . . . . . . . . . . . . . . . . . Allies | -11 -10 -10 -9 -9 -8 -7 -7 -7 -7 -6 -6 -6 -6 -6 -5 -5 -5 -5 -5 -5 -5 -4 -4 -4 -4 -4 -4 -3 -3 -3 -2 -2 -2 -1 -1 -------- Run | Scr Mat Min Mat Min Mat Fac Low Low Zio Pro Fac Low Low Dat Pro Fac Was Fac Ext Cet Arc Fac Was Fac Upp Upp War Pro Res Qua Res Tes Sec Acc Com Total Allies 86 | . 1 6 1 . . 5 . . 3 . 1 . . . 1 3 . 8 15 . . 7 . 6 . 1 5 . 3 1 1 2 1 10 5 Largest Group 10 | . 1 7 7 3 2 4 1 1 4 4 1 . . . 1 3 . 4 10 8 4 3 . 3 . 1 5 4 1 1 1 2 3 4 2 Highest-Rated Group 441 | . 10 134 134 36 20 58 26 26 102 102 26 . . . 96 132 . 119 441 359 249 141 . 116 . 56 288 220 45 26 26 90 116 207 110 Highest-Rated Ally 159 | . 10 31 31 16 10 26 26 26 28 28 26 . . . 96 96 . 31 159 159 159 47 . 116 . 56 68 65 45 26 26 45 45 82 69 Total Orders 83 | . 2 4 11 2 8 2 3 4 . 3 1 . . . . . . 10 4 1 . . . 4 . . . 1 1 6 2 2 4 7 1 STAY 50 | . 1 3 6 1 4 1 2 2 . 2 1 . . . . . . 8 2 1 . . . 2 . . . 1 1 3 2 1 2 4 . ROAM 1 | . . . . . . . . . . . . . . . . . . . . . . . . . . . . . . . . . . . 1 FOLLOW 32 | . 1 1 5 1 4 1 1 2 . 1 . . . . . . . 2 2 . . . . 2 . . . . . 3 . 1 2 3 . Ally Attacks 361 | . . . 37 1 . 28 . . . 15 . . . . 3 8 . 18 80 56 20 20 . 22 . 4 6 7 . . . . . 26 10 Total Damage 9014 | . . . 572 . . 243 . . . 290 . . . . 253 325 . 232 1862 1075 206 605 . 1242 . 147 171 277 . . . . . 1263 251 Kills 71 | . . . 8 . . 1 . . . 4 . . . . 3 2 . 3 14 16 1 2 . 9 . . . 1 . . . . . 6 1 Allies Corrupted 1 | . . . . . . . . . . . . . . . . . . . . . . . . . . . . 1 . . . . . . . Allies Melted 1 | . . . . . . . . . . . . . . . . 1 . . . . . . . . . . . . . . . . . . . Intel | -11 -10 -10 -9 -9 -8 -7 -7 -7 -7 -6 -6 -6 -6 -6 -5 -5 -5 -5 -5 -5 -5 -4 -4 -4 -4 -4 -4 -3 -3 -3 -2 -2 -2 -1 -1 ------- Run | Scr Mat Min Mat Min Mat Fac Low Low Zio Pro Fac Low Low Dat Pro Fac Was Fac Ext Cet Arc Fac Was Fac Upp Upp War Pro Res Qua Res Tes Sec Acc Com Robot Analysis Total 16 | . . . 4 . . 1 . . . . . . . . . . . 3 . . . 3 . 1 . . . . . 3 . . . 1 . Derelict Logs Recovered 18 | . . 1 . 1 . . 2 3 2 2 . 3 2 . 1 . . . . . . . . . 1 . . . . . . . . . . Drone Launches . | . . . . . . . . . . . . . . . . . . . . . . . . . . . . . . . . . . . . Drone Recoveries . | . . . . . . . . . . . . . . . . . . . . . . . . . . . . . . . . . . . . Exploration | -11 -10 -10 -9 -9 -8 -7 -7 -7 -7 -6 -6 -6 -6 -6 -5 -5 -5 -5 -5 -5 -5 -4 -4 -4 -4 -4 -4 -3 -3 -3 -2 -2 -2 -1 -1 ------------- Run | Scr Mat Min Mat Min Mat Fac Low Low Zio Pro Fac Low Low Dat Pro Fac Was Fac Ext Cet Arc Fac Was Fac Upp Upp War Pro Res Qua Res Tes Sec Acc Com Turns Passed 41270 | 64 1633 1396 2991 1111 3302 1137 1023 1137 409 1795 1692 418 931 18 642 853 25 1722 900 228 155 1816 100 2770 351 730 439 823 1588 1169 926 462 2679 2026 1809 Spaces Moved 62349 | 47 1035 764 1445 623 1602 2291 2315 2449 877 2024 4152 1570 2101 76 1727 2449 93 3930 1592 374 111 3750 233 4671 902 1517 773 1355 3159 2079 1694 911 4564 2411 683 Core 13 | 3 . . . . . . . . . . . . . . . . . . . . 1 . . . . . 4 . . . . . . . 5 Treads 1930 | . . . . . 760 . . . . . . . . . . . . . . . 1 . . . . . . . . . . . . 491 678 Legs . | . . . . . . . . . . . . . . . . . . . . . . . . . . . . . . . . . . . . Wheels 4753 | 44 1035 764 1445 623 842 . . . . . . . . . . . . . . . . . . . . . . . . . . . . . . Hover . | . . . . . . . . . . . . . . . . . . . . . . . . . . . . . . . . . . . . Flight 55653 | . . . . . . 2291 2315 2449 877 2024 4152 1570 2101 76 1727 2449 93 3930 1592 374 109 3750 233 4671 902 1517 769 1355 3159 2079 1694 911 4564 1920 . Fastest Speed 23 | 50 100 155 155 170 130 26 26 26 26 26 23 23 23 23 23 24 24 24 24 25 29 27 35 35 35 35 34 34 26 31 29 29 31 31 100 Average Speed 42 | 98 139 155 169 170 159 26 26 26 26 26 23 23 23 23 23 24 24 24 25 32 34 32 35 35 35 35 35 34 30 31 30 30 31 56 154 Slowest Speed 240 | 100 155 155 170 170 240 26 96 96 26 96 95 23 23 23 24 24 24 92 92 200 240 35 35 119 35 35 150 34 34 32 42 31 103 160 160 Overloaded Moves 42 | . . . . . . . . . . . . . . . . . . . . . . . . . . . . . 42 . . . . . . Propulsion Burnouts . | . . . . . . . . . . . . . . . . . . . . . . . . . . . . . . . . . . . . Robots Hopped 144 | . . . . . . 5 . . . 1 2 . . . . 22 . 20 12 . . 13 . 27 4 . . . 17 4 9 1 5 2 . Cave-ins Triggered . | . . . . . . . . . . . . . . . . . . . . . . . . . . . . . . . . . . . . Teleports 2 | . . . . . . . . . . . . . . . . . . . . . . . . . . . . . . 1 . . 1 . . Exploration Rate (%) 73 | 4 96 99 82 99 85 51 94 97 85 92 60 98 97 68 92 33 66 56 86 63 60 54 87 69 91 92 87 97 53 89 40 82 84 38 24 Regions Visited 35 Branch Regions 21 Pre-discovered Areas 11 | . 2 . 2 1 . . . . 3 . . . 1 1 . . . . . . . . . . . 1 . . . . . . . . . Known Exits Taken 28 | . 1 . 1 . 1 1 1 1 1 1 1 1 1 1 1 . . 1 1 1 1 . . 1 1 1 1 1 1 1 1 1 1 1 . Unknown Exits Taken 3 | 1 . 1 . 1 . . . . . . . . . . . . . . . . . . . . . . . . . . . . . . . Scrap Searched 36 | . . 3 . 3 . . 1 3 3 4 . 4 2 . 3 . . . . . . . . . 4 4 . 2 . . . . . . . Spaces Dug 701 | . . . 11 . 3 53 8 29 . 29 40 10 53 . 9 25 . 71 17 . . 67 . 100 9 13 2 13 32 9 36 7 25 25 5 Terrain Destroyed 888 | . 5 . 19 14 19 53 8 40 . 29 40 10 53 . 9 30 . 95 17 38 5 78 . 100 9 13 2 13 32 10 36 7 26 25 53 Melee 590 | . . . 11 . 3 39 8 11 . 17 40 10 30 . 9 25 . 58 17 . . 58 . 91 4 7 2 13 32 9 36 7 23 25 5 Projectile 67 | . . . . . . . . . . 1 . . 1 . . 1 . 14 . 1 5 20 . 9 5 6 . . . 1 . . 2 . 1 AOE 229 | . 5 . 8 14 16 14 . 29 . 11 . . 22 . . 4 . 23 . 37 . . . . . . . . . . . . . . 46 Terrain Rammed . | . . . . . . . . . . . . . . . . . . . . . . . . . . . . . . . . . . . . Walls Destroyed . | . . . . . . . . . . . . . . . . . . . . . . . . . . . . . . . . . . . . Machines Disabled . | . . . . . . . . . . . . . . . . . . . . . . . . . . . . . . . . . . . . Actions | -11 -10 -10 -9 -9 -8 -7 -7 -7 -7 -6 -6 -6 -6 -6 -5 -5 -5 -5 -5 -5 -5 -4 -4 -4 -4 -4 -4 -3 -3 -3 -2 -2 -2 -1 -1 --------- Run | Scr Mat Min Mat Min Mat Fac Low Low Zio Pro Fac Low Low Dat Pro Fac Was Fac Ext Cet Arc Fac Was Fac Upp Upp War Pro Res Qua Res Tes Sec Acc Com Total 74319 | 61 1191 943 1834 648 2109 2738 2699 2906 1058 3234 4754 1598 2462 75 1930 2627 95 4532 2007 470 199 4188 251 5523 920 1693 934 1695 3667 2537 1975 1046 5614 2969 1137 Wait 8869 | 4 104 146 238 3 262 317 354 416 178 1161 487 6 291 . 169 138 . 480 265 72 47 204 6 613 6 135 118 325 358 374 175 76 808 420 113 Move 62046 | 46 1034 763 1444 622 1601 2280 2314 2448 876 2021 4147 1569 2100 75 1726 2407 92 3891 1573 373 110 3725 232 4621 893 1516 772 1354 3125 2071 1675 908 4553 2406 683 Hop 126 | . . . . . . 5 . . . 1 2 . . . . 20 . 18 6 . . 12 . 22 4 . . . 16 3 9 1 5 2 . Pick Up 298 | 3 18 6 14 3 25 13 2 1 2 . 11 . . . 2 8 1 14 1 1 5 20 1 12 2 6 3 . 18 11 16 4 28 23 24 Fast Attach 167 | 7 3 1 4 . 21 5 1 1 . 1 2 . . . 4 1 . 4 4 6 6 15 5 11 . . 9 . 9 8 8 6 12 8 5 Attach 148 | . . . 4 . 13 7 1 1 . . 4 . . . . 2 . 5 1 2 4 15 . 6 1 . . . 5 1 4 3 25 12 32 Detach 68 | 1 1 . . . 1 5 . 1 . . 1 . . . . . . 2 1 1 1 8 1 3 . . . . 3 2 2 4 10 5 15 Swap 457 | . 7 3 37 1 24 11 2 8 . 16 21 12 30 . 14 8 . 25 13 3 2 26 . 38 4 6 4 3 44 24 14 9 21 9 18 Drop 345 | . 7 6 14 4 25 22 2 2 2 1 11 . . . 6 7 2 12 6 5 7 23 6 11 1 6 12 . 22 14 17 10 32 26 24 Fire 573 | . 17 18 49 15 116 2 . 3 . 1 . . 1 . . 4 . 15 8 4 13 62 . 13 5 6 . . . 3 . 2 35 11 170 Melee 1049 | . . . 30 . 18 53 18 20 . 24 68 11 37 . 9 32 . 66 45 3 4 78 . 155 4 13 2 13 67 26 55 23 85 46 44 Ram . | . . . . . . . . . . . . . . . . . . . . . . . . . . . . . . . . . . . . Kick . | . . . . . . . . . . . . . . . . . . . . . . . . . . . . . . . . . . . . Crush 8 | . . . . . 3 . . . . . . . . . . . . . . . . . . . . . . . . . . . . . 5 Escape Stasis 90 | . . . . . . 18 . . . . . . . . . . . . 54 . . . . 18 . . . . . . . . . . . Rewire 51 | . . . . . . . . . . 2 . . . . . . . . 30 . . . . . . . 14 . . . . . . 1 4 Trap 24 | . . . . . . . 5 5 . 6 . . 3 . . . . . . . . . . . . 5 . . . . . . . . . Miscellaneous . | . . . . . . . . . . . . . . . . . . . . . . . . . . . . . . . . . . . . Route ------- -11/Scrapyard -10/Materials (discovered 4 exits: *Mat x3 / *Min) -10/Mines (discovered 3 exits: *Mat x2 / [*Exi]) -9/Materials (discovered 4 exits: *Mat x2 / *Min x2) -9/Mines (discovered 3 exits: *Mat x2 / *Zio) -8/Materials (discovered 4 exits: *Fac x2 / [*Sto x2]) -7/Factory (discovered 4 exits: *Fac x2 / *Low x2) -7/Lower Caves -7/Lower Caves (discovered 2 exits: *Fac / *Zio) -7/Zion -6/Proximity Caves -6/Factory (discovered 5 exits: *Fac x3 / *Low x2) -6/Lower Caves -6/Lower Caves (discovered 2 exits: *Fac / *Dat) -6/Data Miner -5/Proximity Caves -5/Factory (discovered 4 exits: *Fac x2 / Upp / Ext) -5/Waste -5/Factory (discovered 6 exits: *Fac x2 / *Upp x2 / *Ext x2) -5/Extension (discovered 2 exits: *Fac / *Cet) -5/Cetus -5/Archives -4/Factory (discovered 5 exits: *Res x3 / *Upp x2) -4/Waste -4/Factory (discovered 6 exits: *Res x4 / *Upp x2) -4/Upper Caves -4/Upper Caves (discovered 2 exits: *Res / *War) -4/Warlord -3/Proximity Caves -3/Research (discovered 6 exits: Res x3 / *Arm / *Qua x2) -3/Quarantine -2/Research (discovered 4 exits: *Acc x2 / *Tes x2) -2/Testing (discovered 2 exits: *Acc / *Sec) -2/Section 7 -1/Access -1/Command History --------- Turn | Location | Event 9 | -11/Scrapyard | Discovered new exit (range 16) 65 | -11/Scrapyard | Entered Materials 303 | -10/Materials | Build established: Mutant 417 | -10/Materials | Discovered new exit (range 8) 467 | -10/Materials | Discovered new exit (range 12) 1157 | -10/Materials | Identified exit to Mines 1283 | -10/Materials | Discovered new exit (range 16) 1543 | -10/Materials | Central database locked down 1578 | -10/Materials | Discovered new exit (range 16) 1698 | -10/Materials | Entered Mines 1698 | -10/Mines | Accompanied by 1 ally 1699 | -10/Mines | Assembled infested the area 1859 | -10/Mines | Discovered new exit (range 9) 1939 | -10/Mines | Deemed a non-threat by the Exiles lab entrance 1939 | -10/Mines | Discovered new exit (range 5) 1985 | -10/Mines | A weapon hastily lodged in a ceiling crevice suddenly fell to the ground 2157 | -10/Mines | Discovered new exit (range 5) 2188 | -10/Mines | Assisted by bots powering up and referring to "LRC-V3" 2484 | -10/Mines | Build established: Commander-Mutant 2837 | -10/Mines | Received a Mining Laser from a helpful Derelict 3094 | -10/Mines | Entered Materials 3094 | -9/Materials | Accompanied by 7 allies 3094 | -9/Materials | Evolved 2 slots: Utility x2 3099 | -9/Materials | Led the pair of lost Derelicts to an unsafe place 3126 | -9/Materials | Identified exit to Mines 3454 | -9/Materials | Build established: Mutant 3802 | -9/Materials | Discovered new exit (range 14) 4858 | -9/Materials | Destroyed 7 combat bots 5042 | -9/Materials | Discovered new exit (range 12) 5661 | -9/Materials | Repaired Imp. Light Armor Plating? 5881 | -9/Materials | Repaired Imp. EM Shotgun 5934 | -9/Materials | Repaired Imp. EM Shotgun 6085 | -9/Materials | Entered Mines 6085 | -9/Mines | Accompanied by 3 allies 6390 | -9/Mines | Received a Rocket Launcher from a helpful Derelict 6467 | -9/Mines | Discovered new exit (range 7) 6827 | -9/Mines | A Derelict revealed a hidden shortcut to a safe place 6857 | -9/Mines | Learned location of Zion (-7) 6932 | -9/Mines | Discovered new exit (range 6) 7196 | -9/Mines | Entered Materials 7196 | -8/Materials | Accompanied by 2 allies 7196 | -8/Materials | Evolved 2 slots: Propulsion x1, Utility x1 7410 | -8/Materials | Repaired Imp. Light Armor Plating? 7457 | -8/Materials | Repaired Imp. EM Shotgun? 7514 | -8/Materials | Repaired Imp. Treads 7542 | -8/Materials | Repaired Lgt. Armor Plating 7569 | -8/Materials | Repaired Wheel 7603 | -8/Materials | Repaired Imp. Treads 8433 | -8/Materials | Build established: Scavenger-Mutant 8888 | -8/Materials | Build established: Mutant 9034 | -8/Materials | Discovered new exit (range 14) 9112 | -8/Materials | Garrison activated, responded to threat 9198 | -8/Materials | Lost 4 parts (1p2n1u) 9258 | -8/Materials | Discovered new exit (range 13) 9282 | -8/Materials | Core integrity fell below 50% 9421 | -8/Materials | Discovered new exit (range 15) 10167 | -8/Materials | Discovered new exit (range 16) 10212 | -8/Materials | Identified exit to Factory 10498 | -8/Materials | Entered Factory 10498 | -7/Factory | Accompanied by 1 ally 10498 | -7/Factory | Evolved 2 slots: Propulsion x1, Utility x1 10629 | -7/Factory | Repaired Structural Scanner 10652 | -7/Factory | Repaired System Restoration Module 10699 | -7/Factory | Identified exit to Lower Caves 10823 | -7/Factory | Fabricated System Shield (x1) 10855 | -7/Factory | Discovered new exit (range 16) 10898 | -7/Factory | Fabricated Imp. Arc Projector (x1) 10967 | -7/Factory | Fabricated Adv. Signal Interpreter (x2) 10995 | -7/Factory | Identified exit to Factory 11093 | -7/Factory | Discovered exit to Factory (range 15) 11103 | -7/Factory | Build established: Hacker-Sprinter 11335 | -7/Factory | Fabricated Imp. Hacking Suite (x1) 11635 | -7/Factory | Entered Lower Caves 11635 | -7/Lower Caves | Accompanied by 1 ally 11636 | -7/Lower Caves | Encountered a Warlord checkpoint 11637 | -7/Lower Caves | Learned Factory trap positions 11821 | -7/Lower Caves | Discovered new exit (range 13) 11823 | -7/Lower Caves | Identified exit to Lower Caves 11860 | -7/Lower Caves | Build established: Hacker-Scout 11866 | -7/Lower Caves | Learned location of 1 exit from Factory 12400 | -7/Lower Caves | Build established: Hacker-Sprinter 12622 | -7/Lower Caves | Found Alien Artifact 12623 | -7/Lower Caves | Identified Core Expander 12623 | -7/Lower Caves | Installed Core Expander, added new Power slot 12658 | -7/Lower Caves | Entered another Lower Caves area 12658 | -7/Lower Caves | Accompanied by 1 ally 12719 | -7/Lower Caves | Discovered exit to Factory (range 8) 12776 | -7/Lower Caves | Learned Factory emergency access door positions 12921 | -7/Lower Caves | Build established: Hacker-Scout 13070 | -7/Lower Caves | Learned Factory garrison access intel 13628 | -7/Lower Caves | Encountered a Warlord checkpoint 13631 | -7/Lower Caves | Learned Factory security intel 13638 | -7/Lower Caves | Discovered new exit (range 10) 13641 | -7/Lower Caves | Identified exit to Zion 13795 | -7/Lower Caves | Entered Zion 13795 | -7/Zion | Accompanied by 1 ally 13800 | -7/Zion | Learned 8 Factory zone layouts 13813 | -7/Zion | Discovered new exit (range 15) 13818 | -7/Zion | Identified exit to Proximity Caves 13854 | -7/Zion | Learned location of 1 exit from Factory 13871 | -7/Zion | Gained Derelict followers 13899 | -7/Zion | Received a visual enhancement algorithm 13905 | -7/Zion | Found GAL Module 13927 | -7/Zion | Learned location of Armory (-3) 13961 | -7/Zion | Given the Hacking Drone Bay 14021 | -7/Zion | Found Prototype Special Weapon 14204 | -7/Zion | Entered Proximity Caves 14204 | -6/Proximity Caves | Accompanied by 4 allies 14531 | -6/Proximity Caves | Identified RU-N14's Throwing Claymores 15195 | -6/Proximity Caves | Received a Behemoth hack from an annoying Tinkerer 15638 | -6/Proximity Caves | Discovered exit to Factory (range 6) 15999 | -6/Proximity Caves | Entered Factory 15999 | -6/Factory | Evolved 2 slots: Propulsion x1, Utility x1 16000 | -6/Factory | Identified exit to Factory 16002 | -6/Factory | Loaded intel: 88 trap records 16005 | -6/Factory | Loaded intel: 4 garrison access locations 16076 | -6/Factory | Identified exit to Lower Caves 16360 | -6/Factory | Build established: Hacker-Sprinter 16706 | -6/Factory | Central database locked down 16778 | -6/Factory | Discovered exit to Factory (range 3) 17024 | -6/Factory | Repaired Imp. VTOL Module 17078 | -6/Factory | Repaired Imp. Cesium-ion Thruster 17293 | -6/Factory | Repaired Broken Shock Maul 17354 | -6/Factory | Fabricated Imp. Hacking Suite (x1) 17691 | -6/Factory | Entered Lower Caves 17719 | -6/Lower Caves | Encountered a Warlord checkpoint 17719 | -6/Lower Caves | Learned Factory stockpile data 17839 | -6/Lower Caves | Identified exit to Lower Caves 17841 | -6/Lower Caves | Learned Factory security intel 18109 | -6/Lower Caves | Entered another Lower Caves area 18211 | -6/Lower Caves | Discovered exit to Factory (range 9) 18352 | -6/Lower Caves | Spotted B-75 Beast 19006 | -6/Lower Caves | Learned location of 1 exit from Factory 19023 | -6/Lower Caves | Discovered new exit (range 16) 19026 | -6/Lower Caves | Identified exit to Data Miner 19040 | -6/Lower Caves | Entered Data Miner 19040 | -6/Data Miner | Discovered new exit (range 6) 19045 | -6/Data Miner | Met Data Miner 19049 | -6/Data Miner | Learned location of Section 7 (-2) 19049 | -6/Data Miner | Acquired the access code to Warlord's prototype stash 19053 | -6/Data Miner | Received God Mode back door access code from Data Miner 19058 | -6/Data Miner | Identified exit to Proximity Caves 19058 | -6/Data Miner | Entered Proximity Caves 19141 | -5/Proximity Caves | Learned location of 2 exits from Factory 19163 | -5/Proximity Caves | Escorted by Enhanced Grunt 19496 | -5/Proximity Caves | Spotted B-75 Beast 19653 | -5/Proximity Caves | Discovered exit to Factory (range 2) 19700 | -5/Proximity Caves | Entered Factory 19700 | -5/Factory | Accompanied by 1 ally 19700 | -5/Factory | Evolved 2 slots: Utility x2 19701 | -5/Factory | Identified exit to Extension 19702 | -5/Factory | Identified exit to Factory 19702 | -5/Factory | Identified exit to Upper Caves 19780 | -5/Factory | Repaired Adv. System Shield? 19846 | -5/Factory | Fabricated Adv. Hacking Suite? 19995 | -5/Factory | Build established: Wizard-Scout 20101 | -5/Factory | Incoming investigation squad redirected 20133 | -5/Factory | Fabricated Adv. Hacking Suite? 20247 | -5/Factory | Fabricated Imp. Component Analysis Suite? 20517 | -5/Factory | Build established: Wizard-Sprinter 20550 | -5/Factory | Fabricated Adv. Hacking Suite (x1) 20553 | -5/Factory | Manually triggered Chute Trap 20553 | -5/Factory | Sucked down chute 20553 | -5/Factory | Entered Waste 20558 | -5/Waste | Spotted C-40 Crusher 20560 | -5/Waste | Spotted C-40 Crusher 20566 | -5/Waste | Spotted C-40 Crusher 20566 | -5/Waste | Discovered new exit (range 11) 20568 | -5/Waste | EMP discharged 20570 | -5/Waste | Spotted C-40 Crusher 20577 | -5/Waste | Identified exit to Factory 20578 | -5/Waste | Entered Factory 20636 | -5/Factory | Discovered exit to Upper Caves (range 10) 20882 | -5/Factory | Discovered exit to Extension (range 6) 20907 | -5/Factory | Repaired Nanoactuators? 20959 | -5/Factory | Repaired Adv. System Restoration Module? 20973 | -5/Factory | Discovered exit to Upper Caves (range 15) 20974 | -5/Factory | Allied Derelicts emerged from ambush trap array 21275 | -5/Factory | Fabricated Lrn. Sensor Array (x1) 21547 | -5/Factory | Spotted B-75 Beast 21552 | -5/Factory | Fabricated Lgt. Regenerative Plating? 21577 | -5/Factory | Discovered exit to Factory (range 13) 21703 | -5/Factory | Repaired Cld. Nuclear Pulse Thruster 21734 | -5/Factory | Incoming investigation squad redirected 21772 | -5/Factory | Fabricated Adv. System Shield? 21892 | -5/Factory | Discovered exit to Factory (range 13) 21951 | -5/Factory | Fabricated Lrn. Sensor Array? 22010 | -5/Factory | Repaired Shock Maul 22229 | -5/Factory | Adv. Hacking Suite fried by hacking feedback 22248 | -5/Factory | Incoming investigation squad redirected 22300 | -5/Factory | Entered Extension 22382 | -5/Extension | Rescued A7 22539 | -5/Extension | Build established: Hacker-Sprinter 22840 | -5/Extension | Spotted B-75 Beast 22850 | -5/Extension | Spotted B-75 Beast 22862 | -5/Extension | Allies destroyed B-75 Beast 22872 | -5/Extension | Allies destroyed B-75 Beast 22998 | -5/Extension | Rescued a captive Derelict 22999 | -5/Extension | Rescued a captive Derelict 23005 | -5/Extension | Rescued a captive Derelict 23006 | -5/Extension | Rescued a captive Derelict 23054 | -5/Extension | Rescued a captive Derelict 23124 | -5/Extension | Discovered exit to Factory (range 10) 23124 | -5/Extension | Discovered new exit (range 6) 23193 | -5/Extension | Identified exit to Cetus 23200 | -5/Extension | Entered Cetus 23200 | -5/Cetus | Accompanied by 8 allies (A7) 23204 | -5/Cetus | Spotted Cetus Guard 23205 | -5/Cetus | Acquired a Cetus Manufacturing Module code from A7 23221 | -5/Cetus | Spotted Cetus Guard 23222 | -5/Cetus | Spotted Cetus Guard 23222 | -5/Cetus | Spotted Cetus Guard 23234 | -5/Cetus | Allies destroyed Cetus Guard 23234 | -5/Cetus | Allies destroyed Cetus Guard 23236 | -5/Cetus | Allies destroyed Cetus Guard 23238 | -5/Cetus | Allies destroyed Cetus Guard 23259 | -5/Cetus | Lost 3 parts (3n) 23350 | -5/Cetus | Started Cetus Manufacturing Module 23358 | -5/Cetus | Cetus Manufacturing Module disabled 23384 | -5/Cetus | Escorted A7 to Cetus Mainframe 23388 | -5/Cetus | Discovered new exit (range 16) 23393 | -5/Cetus | Identified exit to Archives 23428 | -5/Cetus | Entered Archives 23428 | -5/Archives | Accompanied by 4 allies (A7) 23433 | -5/Archives | Received a hacking code to weaken MAIN.C 23548 | -5/Archives | Core integrity fell below 50% 23578 | -5/Archives | Lost 7 parts (1p2n1u3w) 23579 | -5/Archives | Discovered exit to Factory (range 12) 23583 | -5/Archives | Entered Factory 23583 | -4/Factory | Evolved 2 slots: Utility x2 23739 | -4/Factory | Repaired Nuclear Pulse Thruster 23775 | -4/Factory | Repaired Particle Reactor 24083 | -4/Factory | Spotted B-86 Titan 24085 | -4/Factory | Discovered new exit (range 15) 24188 | -4/Factory | Repaired Impulse Thruster? 24208 | -4/Factory | Discovered new exit (range 13) 24217 | -4/Factory | Found Exp. Signal Interpreter 24376 | -4/Factory | Identified exit to Upper Caves 24490 | -4/Factory | Build established: Wizard-Sprinter 24645 | -4/Factory | Discovered new exit (range 14) 24708 | -4/Factory | Repaired Gravity Neutralizer? 24773 | -4/Factory | Fabricated Exp. Hacking Suite (x1) 24888 | -4/Factory | Incoming investigation squad redirected 24889 | -4/Factory | Fabricated Impulse Thruster Array (x1) 24968 | -4/Factory | Repaired Impulse Thruster? 25058 | -4/Factory | Discovered new exit (range 15) 25065 | -4/Factory | Identified exit to Research 25206 | -4/Factory | Repaired Lrn. Sensor Array 25288 | -4/Factory | Repaired Adv. System Restoration Module? 25399 | -4/Factory | Manually triggered Chute Trap 25399 | -4/Factory | Sucked down chute 25399 | -4/Factory | Entered Waste 25399 | -4/Waste | The area was eerily silent 25446 | -4/Waste | Discovered new exit (range 14) 25479 | -4/Waste | Identified exit to Factory 25499 | -4/Waste | Entered Factory 25852 | -4/Factory | Discovered exit to Upper Caves (range 13) 26077 | -4/Factory | Spotted B-86 Titan 26297 | -4/Factory | Build established: Wizard-Scout 26301 | -4/Factory | Repaired Field Propulsion Array 26307 | -4/Factory | Repaired Mic. Fission Core? 26360 | -4/Factory | Repaired Impulse Thruster Array 26365 | -4/Factory | Repaired Impulse Thruster? 26649 | -4/Factory | Discovered exit to Research (range 13) 26741 | -4/Factory | Fabricated Plasma Lance? 26825 | -4/Factory | Repaired Adv. Reaction Control System? 26866 | -4/Factory | Repaired Field Propulsion Array? 26925 | -4/Factory | Fabricated Lrn. Sensor Array? 27031 | -4/Factory | Build established: Wizard-Mutant 27249 | -4/Factory | Spotted B-86 Titan 27251 | -4/Factory | Befriended a Behemoth using the annoying Tinkerer's hack 27274 | -4/Factory | Found Exp. Terrain Scan Processor 27334 | -4/Factory | Fabricated Lrn. Sensor Array (x1) 27696 | -4/Factory | Fabricated C-35 Carver? 27758 | -4/Factory | Incoming investigation squad redirected 27999 | -4/Factory | First assault squad dispatched 28020 | -4/Factory | Incoming assault squad redirected 28021 | -4/Factory | Repaired Mic. Fission Core 28042 | -4/Factory | Build established: Hacker-Mutant 28043 | -4/Factory | Repaired Field Propulsion Array 28106 | -4/Factory | Repaired Matter Neutralizer 28228 | -4/Factory | Repaired Plasma Lance 28269 | -4/Factory | Entered Upper Caves 28331 | -4/Upper Caves | Encountered a Warlord checkpoint 28516 | -4/Upper Caves | Learned 4 Research zone layouts 28539 | -4/Upper Caves | Build established: Hacker-Scout 28552 | -4/Upper Caves | Discovered new exit (range 15) 28562 | -4/Upper Caves | Identified exit to Upper Caves 28620 | -4/Upper Caves | Entered another Upper Caves area 28634 | -4/Upper Caves | Discovered exit to Research (range 12) 29226 | -4/Upper Caves | Discovered new exit (range 22) 29245 | -4/Upper Caves | Learned Research trap positions 29245 | -4/Upper Caves | Learned Research emergency access door positions 29245 | -4/Upper Caves | Learned Armory stockpile data 29245 | -4/Upper Caves | Learned Factory garrison access intel 29342 | -4/Upper Caves | Identified exit to Warlord 29350 | -4/Upper Caves | Entered Warlord 29376 | -4/Warlord | Learned Research trap positions 29376 | -4/Warlord | Learned Armory emergency access door positions 29376 | -4/Warlord | Learned 4 Armory zone layouts 29565 | -4/Warlord | Found Prototype Processor 29566 | -4/Warlord | Found Exp. Focal Shield 29572 | -4/Warlord | Found Prototype Reactor 29572 | -4/Warlord | Identified Vortex Chain Reactor 29595 | -4/Warlord | Warlord's base attacked by MAIN.C 29612 | -4/Warlord | Found Prototype Energy Gun 29612 | -4/Warlord | Identified Vortex Shotgun 29616 | -4/Warlord | Found Prototype Energy Gun 29616 | -4/Warlord | Identified Vortex Rail 29653 | -4/Warlord | Discovered new exit (range 22) 29740 | -4/Warlord | Opened side exit 29773 | -4/Warlord | Identified exit to Proximity Caves 29789 | -4/Warlord | Entered Proximity Caves 29789 | -3/Proximity Caves | Accompanied by 4 allies 30277 | -3/Proximity Caves | Discovered exit to Research (range 12) 30612 | -3/Proximity Caves | Entered Research 30612 | -3/Research | Evolved 2 slots: Propulsion x1, Utility x1 30613 | -3/Research | Identified exit to Quarantine 30615 | -3/Research | Loaded intel: 94 trap records 30657 | -3/Research | Incoming investigation squad redirected 30860 | -3/Research | Fabricated Exp. Hacking Suite? 31024 | -3/Research | Fabricated Exp. Hacking Suite? 31026 | -3/Research | Identified Exp. Core Analyzer 31038 | -3/Research | Repaired Adv. Reaction Control System? 31172 | -3/Research | Found Unknown Protection 31172 | -3/Research | Identified Adv. Powered Armor 31178 | -3/Research | Found Adv. Powered Armor 31261 | -3/Research | Identified exit to Research 31362 | -3/Research | Search patrols dispatched 31575 | -3/Research | Repaired Cld. Impulse Thruster? 31612 | -3/Research | Search patrols dispatched 31615 | -3/Research | Found Hellfire Missile Launcher 31671 | -3/Research | Found Prototype Device 31708 | -3/Research | Identified exit to Armory 31726 | -3/Research | Repaired Cld. Impulse Thruster 31855 | -3/Research | Garrison activated, responded to threat 31870 | -3/Research | Found Prototype Processor 31919 | -3/Research | Identified Spectral Analyzer 31923 | -3/Research | Identified Exp. EM Disruption Field 31952 | -3/Research | Incoming investigation squad redirected 31958 | -3/Research | Build established: Wizard-Sprinter 31964 | -3/Research | Spotted B-86 Titan 32200 | -3/Research | Entered Quarantine 32218 | -3/Quarantine | Found Alien Artifact 32243 | -3/Quarantine | Identified Subatomic Replicator 32357 | -3/Quarantine | Repaired Impulse Thruster Array? 32384 | -3/Quarantine | Found Alien Artifact 32397 | -3/Quarantine | Repaired Impulse Thruster Array? 32451 | -3/Quarantine | Identified Hpw. Transdimensional Reconstructor 32455 | -3/Quarantine | Repaired Plasma Lance? 32523 | -3/Quarantine | Found Alien Slashing Weapon 32523 | -3/Quarantine | Identified Sigix Broadsword 32568 | -3/Quarantine | Repaired Adv. Powered Armor? 32654 | -3/Quarantine | Found Alien Artifact 32655 | -3/Quarantine | Identified Dimensional Node Initializer 32655 | -3/Quarantine | Initialized slip node 32660 | -3/Quarantine | Found Alien Artifact 32660 | -3/Quarantine | Identified Transdimensional Reconstructor 32660 | -3/Quarantine | Warped through subspace to slip node 32667 | -3/Quarantine | Found Dimensional Node Initializer 32864 | -3/Quarantine | Found Alien Artifact 32918 | -3/Quarantine | Identified Core Reset Matrix 33369 | -3/Quarantine | Entered Research 33369 | -2/Research | Evolved 2 slots: Utility x2 33370 | -2/Research | Loaded intel: 99 trap records 33418 | -2/Research | Repaired Exp. Energy Well 33505 | -2/Research | Identified exit to Testing 33505 | -2/Research | Exp. Hacking Suite fried by hacking feedback 33554 | -2/Research | Discovered new exit (range 11) 33578 | -2/Research | Spotted B-90 Cyclops 33746 | -2/Research | Repaired Adv. Gravity Neutralizer 33821 | -2/Research | Found Prototype Device 33831 | -2/Research | Found Prototype Device 33866 | -2/Research | Identified Exp. Thermal Defense Suite 33866 | -2/Research | Identified Exp. ECM Suite 34049 | -2/Research | Discovered new exit (range 20) 34057 | -2/Research | Fabricated Exp. Hacking Suite? 34069 | -2/Research | Fabricated Exp. EM Disruption Field? 34100 | -2/Research | Incoming investigation squad redirected 34121 | -2/Research | Fabricated Exp. Hacking Suite (x1) 34159 | -2/Research | Identified exit to Access 34295 | -2/Research | Entered Testing 34318 | -2/Testing | Build established: Wizard-Scout 34325 | -2/Testing | Found Prototype Ballistic Cannon 34325 | -2/Testing | Identified Omega Cannon 34414 | -2/Testing | Central database locked down 34452 | -2/Testing | Discovered exit to Access (range 8) 34506 | -2/Testing | Found Prototype Energy Gun 34506 | -2/Testing | Identified Hyp. EM Gauss Rifle 34507 | -2/Testing | Assembled Modified EM Gauss 34613 | -2/Testing | Incoming investigation squad redirected 34710 | -2/Testing | Spotted Fortress 34735 | -2/Testing | Discovered new exit (range 6) 34736 | -2/Testing | Identified exit to Section 7 34757 | -2/Testing | Entered Section 7 34757 | -2/Section 7 | Accompanied by 2 allies 34858 | -2/Section 7 | Found Alien Artifact 34878 | -2/Section 7 | Identified Integrated Dissipator 34878 | -2/Section 7 | Installed Integrated Dissipator, increased core heat dissipation (+20) 34989 | -2/Section 7 | Spotted S7 Guard 35017 | -2/Section 7 | Found Alien Artifact 35027 | -2/Section 7 | Identified Core Regenerator 35036 | -2/Section 7 | Initialized slip node 35085 | -2/Section 7 | Found Alien Artifact 35108 | -2/Section 7 | Identified Integrity Redistributor 35182 | -2/Section 7 | Found Integrated Dissipator 35190 | -2/Section 7 | Installed Integrated Dissipator, increased core heat dissipation (+20) 35194 | -2/Section 7 | Spotted S7 Guard 35270 | -2/Section 7 | Build established: Wizard-Ninja 35589 | -2/Section 7 | Warped through subspace to slip node 35782 | -2/Section 7 | Build established: Wizard-Sprinter 36102 | -2/Section 7 | Spotted B-99 Colossus 36123 | -2/Section 7 | Found Alien Artifact 36124 | -2/Section 7 | Found Alien Artifact 36127 | -2/Section 7 | Found Alien Artifact 36361 | -2/Section 7 | Identified LRC Matter Compressor 36361 | -2/Section 7 | Identified LRC Insulator 36361 | -2/Section 7 | Identified LRC Boosters 36361 | -2/Section 7 | Installed LRC Insulator, gained EM resistance (25) 36362 | -2/Section 7 | Installed LRC Matter Compressor, increased matter storage capacity (+125) 36363 | -2/Section 7 | Installed LRC Boosters, increased mass support (+10) 37041 | -2/Section 7 | Build established: Wizard-Ninja 37060 | -2/Section 7 | Incoming investigation squad redirected 37257 | -2/Section 7 | First assault squad dispatched 37287 | -2/Section 7 | Found Transdimensional Reconstructor 37299 | -2/Section 7 | Found Alien Reactor 37321 | -2/Section 7 | Repaired Exp. Propulsion Shielding? 37327 | -2/Section 7 | Identified Matter Drive 37328 | -2/Section 7 | Found Integrated Dissipator 37330 | -2/Section 7 | Installed Integrated Dissipator, increased core heat dissipation (+20) 37348 | -2/Section 7 | Used Core Regenerator, restored core integrity (+355) 37432 | -2/Section 7 | Spotted B-90 Cyclops 37436 | -2/Section 7 | Entered Access 37436 | -1/Access | Evolved 2 slots: Utility x1, Weapon x1 37491 | -1/Access | Identified exit to Command 37729 | -1/Access | Fabricated Adv. Kinecellerator? 37798 | -1/Access | Fabricated Prc. Matter Filter? 37805 | -1/Access | Used Subatomic Replicator to replicate Integrity Redistributor 37823 | -1/Access | Fabricated Exp. Targeting Computer (x1) 38235 | -1/Access | Incoming investigation squad redirected 38253 | -1/Access | Fabricated Hdn. Centrium Heavy Treads? 38734 | -1/Access | Build established: Wizard-Assassin 38904 | -1/Access | Incoming investigation squad redirected 39294 | -1/Access | Incoming investigation squad redirected 39462 | -1/Access | Entered Command 39560 | -1/Command | Found Antimissile System 39773 | -1/Command | Build established: Wizard-Mutant 39792 | -1/Command | Repaired Prc. Matter Filter 40831 | -1/Command | Spotted Combat Programmer 40962 | -1/Command | First assault squad dispatched 40966 | -1/Command | Build established: Hacker-Mutant 40968 | -1/Command | Met MAIN.C 40975 | -1/Command | Hacked MAIN.C using A7's code 41004 | -1/Command | 0b10 Conduit disabled 41026 | -1/Command | Used Integrity Redistributor, redistributed integrity from core (-252) 41061 | -1/Command | Used Integrity Redistributor, redistributed integrity from core (-241) 41078 | -1/Command | Lost 3 parts (2u1w) 41122 | -1/Command | Core integrity fell below 50% 41148 | -1/Command | Destroyed MAIN.C Shell 41151 | -1/Command | MAIN.C activated Command garrisons 41165 | -1/Command | Spotted Combat Programmer 41182 | -1/Command | Spotted M Guard 41185 | -1/Command | Spotted M Guard 41266 | -1/Command | Core integrity fell below 20% 41271 | -1/Command | Destroyed by M Guard with Cooled Nova Cannon Last Messages --------------- 41262_ Micro-nuke Launcher destroyed. 41263_ Penetrated by Slug. 41263_ Critical hit (Destroy). 41263_ Hdn. Centrium Heavy Treads destroyed. 41264_ Knocked back. 41264_ Penetrated by EMDS Slug. 41264_ Dropped Particle Reactor. 41264_ Sigix Broadsword destroyed. 41266_ Dropped Huge Storage Unit. 41266_ Combat Programmer resets G-73 Enforcer, system corruption cleaned. 41267_ Exp. Hacking Suite destroyed. 41267_ Exp. Energy Well destroyed. 41267_ Adv. Target Analyzer destroyed. 41267_ Critical hit (Blast). 41267_ Knocked back. 41270_ Penetrated by EMDS Slug. 41270_ Exp. Terrain Scan Processor destroyed. 41270_ Critical hit (Blast). 41271_ Slug penetrates 0b10 Conduit. 41271_ Penetrated by Slug. Map ----- +----------------------------------------------------+ | ?????????????????????????????????????????????????? | | ?????????????????????????????????????????????????? | | ?????????????????????????????????????????????????? | | ?????????????????????????????????????????????????? | | ?????????????????????????????????????????????????? | | ?????????????????????????????????????????????????? | | ?????????????????????????????????????????????????? | | ?????????????????????????????????????????????????? | | ?????????????????????????????????????????????????? | | ?????????????????????????????????????????????????? | | ?????????????????????????????????????????????????? | | ?????????????????????????????????????????????????? | | ?????????????????????????????????????????????????? | | ?????????????????????????????????????????????????? | | ?????????????????????????????????????????????????? | | ?????????????????????????????????????????????????? | | ?????????????????????????????????????????????????? | | ?????????????????????????????????????????????????? | | ?????????????????????????????????????????????????? | | ?????????????????????????????????????????????????? | | ?????????????????????????????????????????????????? | | ?????????????????????????????????????????????????? | | ???????????????????????#####??####???????????????? | | ???????????????????????# %### #?#?????????????? | | ????????????????#########;;l##% %# #?????????????? | | ??????????????""""" @ l!!% ##?????????????? | | ????????????"" Yp| = #?????????????? | | ????????????"" h = ############### | | ????????????""""""""""" Y | | ????????????????" """ | | ????????????????""""" | | ????????????????"" M ###;############# | | ?????????????" """" " #?###???????????? | | ???????????? " #???????????????? | | ???????????? " #???????????????? | | ??????????????""""" #???????????????? | | ????????????"" %% #???????????????? | | ???????????# % #???????????????? | | ???????????# " #???????????????? | | ???????????? " #???????????????? | | ???????????? " " #???????????????? | | ???????????? """" #???????????????? | | ????????????? " " #???????????????? | | ????????????? "" """ " #???????????????? | | ?????????????? """ " """""" #???????????????? | | ??????????????? ???" ??? ??? ????????????????? | | ???????????????????#???#####?????????????????????? | | ?????????????????????????????????????????????????? | | ?????????????????????????????????????????????????? | | ?????????????????????????????????????????????????? | +----------------------------------------------------+ Best States ------------- Heat Dissipation 112 Energy Generation 43 Energy Capacity 1180 Matter Stores 425 Matter Capacity 425 Sight Range 16 Robot Scan Range 18 Terrain Scan Range 24 Terrain Scan Density 1010 ECM Strength 2 Jamming Range 16 Additional Mass Support 16 Armor Coverage 2400 Resistance: KI 30 Resistance: EM 100 Propulsion Shielding 90 Weapon Shielding 66 Point Defense Rating 240 Melee Speed Boost 30 Evasion (%) 76 Targeting Accuracy 28 Melee Accuracy 8 Target Analysis 8 Armor Integrity Analysis 40 Recoil Reduction 6 Matter Filtering 50 Kinecelleration 50 Offensive Hacking 74 Defensive Hacking 28 Authchip Count 1 Trap Extractor Capacity 6 Item Schematics ----------------- Huge Storage Unit | -10/Materials | Hacked Hcp. Storage Unit | -10/Materials | Hacked Imp. Medium Laser | -8/Materials | Scanalyzed Hacking Suite | -8/Materials | Hacked Adv. Signal Interpreter | -7/Factory | Hacked System Shield | -7/Factory | Hacked Imp. Hacking Suite | -7/Factory | Hacked Mni. Grenade Launcher | -7/Factory | Scanalyzed Microactuators | -7/Factory | Scanalyzed Imp. Melee Analysis Suite | -7/Factory | Scanalyzed Imp. Sensor Array | -7/Factory | Scanalyzed Nuclear Pulse Thruster | -7/Factory | Hacked Adv. Melee Analysis Suite | -6/Factory | Scanalyzed Structural Scanner | -6/Factory | Scanalyzed Imp. Trap Extractor | -6/Factory | Scanalyzed Imp. System Shield | -6/Factory | Hacked Matter Neutralizer | -6/Factory | Hacked Adv. Sensor Array | -6/Factory | Hacked Power Sword | -6/Factory | Scanalyzed Impulse Thruster | -6/Factory | Hacked Proton Cannon | -6/Factory | Hacked Energy Well | -6/Factory | Hacked Centrium Wheel | -6/Factory | Hacked Adv. Target Analyzer | -6/Factory | Hacked Shock Maul | -6/Factory | Scanalyzed Cld. Aerolev Unit | -6/Factory | Scanalyzed Biomechanical Wings | -6/Factory | Scanalyzed Quantum Capacitor | -6/Factory | Hacked Combat Drone Bay | -6/Data Miner | Free Lgt. Regenerative Plating | -6/Data Miner | Free Cld. Nuclear Pulse Thruster | -6/Data Miner | Free Prc. Matter Filter | -6/Data Miner | Free Hvy. Proton Cannon | -6/Data Miner | Free Hvy. Siege Treads | -6/Data Miner | Free Adv. Transmission Jammer | -6/Data Miner | Free Hvy. Disruptor Cannon | -6/Data Miner | Free Q-thruster | -6/Data Miner | Free Adv. Hacking Suite | -5/Factory | Hacked Imp. KE Penetrator | -5/Factory | Scanalyzed Adv. System Restoration Module | -5/Factory | Scanalyzed Impulse Thruster Array | -5/Factory | Hacked Hyp. Railgun | -5/Factory | Hacked Adv. System Shield | -5/Factory | Scanalyzed Gravity Neutralizer | -5/Factory | Scanalyzed Nanoactuators | -5/Factory | Scanalyzed Adv. Reaction Control System | -5/Factory | Scanalyzed Gamma Bomb Array | -5/Factory | Hacked Lrn. Sensor Array | -5/Factory | Hacked Exp. Propulsion Shielding | -5/Factory | Hacked Coolant Network | -5/Factory | Scanalyzed Imp. Component Analysis Suite | -5/Factory | Scanalyzed Adv. Particle Charger | -5/Factory | Hacked Hvy. Gauss Cannon | -5/Factory | Hacked Lrn. Phase Cannon | -5/Factory | Hacked Imp. Energy Well | -5/Factory | Scanalyzed Com. HERF Cannon | -5/Extension | Hacked Imp. Kinecellerator | -5/Extension | Hacked Exp. Utility Shielding | -5/Extension | Hacked Imp. Focal Shield | -5/Extension | Hacked Adv. VSS Leg | -5/Extension | Hacked Exp. Flexi-carbon Leg | -4/Factory | Hacked Exp. Hacking Suite | -4/Factory | Hacked Imp. Fusion Compressor | -4/Factory | Scanalyzed Energy Mantle | -4/Factory | Scanalyzed Adv. Actuator Array | -4/Factory | Scanalyzed Exp. Energy Well | -4/Factory | Scanalyzed Exp. Targeting Computer | -4/Factory | Hacked Lrn. Terrain Scanner | -4/Factory | Scanalyzed Exp. Terrain Scan Processor | -4/Factory | Hacked Plasma Lance | -4/Factory | Hacked Exp. Melee Analysis Suite | -4/Factory | Hacked Exp. Core Analyzer | -3/Research | Scanalyzed Hvy. Proton Missile Launcher | -3/Research | Scanalyzed Exp. Matter Compressor | -3/Research | Hacked Mic. Antimatter Reactor | -3/Research | Hacked Imp. Q-thruster | -3/Research | Hacked Exp. Actuator Array | -3/Research | Hacked Exp. Power Amplifier | -3/Research | Scanalyzed Adv. Powered Armor | -3/Research | Scanalyzed Exp. Focal Shield | -3/Research | Scanalyzed Exp. EM Disruption Field | -3/Quarantine | Scanalyzed Spectral Analyzer | -3/Quarantine | Scanalyzed Exp. Sensor Array | -3/Quarantine | Hacked Fusion Reactor | -3/Quarantine | Scanalyzed Adv. Force Field | -3/Quarantine | Hacked Adv. Cloaking Device | -3/Quarantine | Hacked Cmb. Linear Gravjet | -2/Research | Hacked Hellfire Missile Launcher | -2/Research | Scanalyzed Exp. Thermal Defense Suite | -2/Research | Scanalyzed Exp. ECM Suite | -2/Research | Scanalyzed Femtoactuators | -2/Research | Hacked Adv. Phase Shifter | -2/Research | Hacked Enh. Nova Cannon | -2/Research | Hacked Com. Linear Accelerator | -2/Research | Scanalyzed Exp. Transmission Jammer | -2/Testing | Hacked Adv. Kinecellerator | -2/Testing | Hacked Prc. Energy Filter | -2/Testing | Hacked Exp. Force Field | -2/Testing | Hacked Imp. Quantum Reactor | -2/Testing | Scanalyzed Cld. Q-thruster | -2/Testing | Hacked Exp. Reaction Control System | -2/Testing | Hacked Hdn. Centrium Heavy Treads | -2/Testing | Scanalyzed Exp. Q-thruster | -2/Section 7 | Hacked Exp. Weapon Cycler | -1/Access | Hacked Robot Schematics ------------------ H-66 Slayer | -6/Data Miner | Free M-22 Extractor | -6/Data Miner | Free I-47 Archangel | -6/Data Miner | Free L-41 Fighter | -6/Data Miner | Free O-32 Director | -6/Data Miner | Free M-30 Cleanser | -6/Data Miner | Free B-60 Warrior | -5/Extension | Hacked Fabricated ------------ System Shield | x1 | -7/Factory Imp. Arc Projector | x1 | -7/Factory | Preloaded Adv. Signal Interpreter | x2 | -7/Factory Imp. Hacking Suite | x1 | -7/Factory Imp. Hacking Suite | x1 | -6/Factory Adv. Hacking Suite | x1 | -5/Factory Adv. Hacking Suite | x1 | -5/Factory Imp. Component Analysis Suite | x1 | -5/Factory | Preloaded Adv. Hacking Suite | x1 | -5/Factory Lrn. Sensor Array | x1 | -5/Factory Lgt. Regenerative Plating | x1 | -5/Factory Adv. System Shield | x1 | -5/Factory Lrn. Sensor Array | x1 | -5/Factory Exp. Hacking Suite | x1 | -4/Factory Impulse Thruster Array | x1 | -4/Factory Plasma Lance | x1 | -4/Factory Lrn. Sensor Array | x1 | -4/Factory Lrn. Sensor Array | x1 | -4/Factory C-35 Carver | x3 | -4/Factory | Preloaded Exp. Hacking Suite | x1 | -3/Research | Authchip Exp. Hacking Suite | x1 | -3/Research Exp. Hacking Suite | x1 | -2/Research Exp. EM Disruption Field | x1 | -2/Research | Authchip Exp. Hacking Suite | x1 | -2/Research Adv. Kinecellerator | x1 | -1/Access | Authchip Prc. Matter Filter | x1 | -1/Access Exp. Targeting Computer | x1 | -1/Access Hdn. Centrium Heavy Treads | x1 | -1/Access Alien Tech Used ----------------- Core Expander Sigix Broadsword Dimensional Node Initializer Transdimensional Reconstructor Integrated Dissipator High-powered Transdimensional Reconstructor LRC Insulator LRC Matter Compressor LRC Boosters Matter Drive Core Regenerator Subatomic Replicator Integrity Redistributor Achievements -------------- None Challenges ------------ None Game ------ Seed ThermalShrapnelDatajack Manual? 0 Play Time 12:09:04 Cumulative 435.3 hours Start 2022.06.22 @ 19:52:24 End 2022.06.24 @ 01:40:19 Sessions 9 Manual Loads 0 Difficulty Rogue Special Mode None Game No. 110 Rogue 110 Adventurer 0 Explorer 0 Win Type - Total 20 Types 15/1/3/0/0/0/0/1/0 Lore% 91 Gallery% 92 Achievement% 78 Wizard Run 0 Options --------- ASCII 0 Keyboard 0 Movement Numpad Keybinds 0 Fullscreen 1 Font 14/SmallcapsGlow Map View 84x54 Tactical HUD 1 Map Filters NONE Filters NONE Steam 1 RUN: 8873e262-0395-4019-ac87-e9b618277ec6